Workbook

Sheet ------ (hidden)

Sheet VXXXXX (hidden)

Sheet 징수실적
G1: 2014년 12월분 지방세 징수실적 보고서 (2014 회계)
P4: 제출 년월일 : | Q4: 2015년 1월 9일
R5: (단위 : 천원)
A6: 구 분 | E6: 목 표액 (예산액) | G6: 부 과 액 | I6: 징 수 액 | K6: 불납결손액 | M6: 미 수 납 액 | N6: 징 수 비 율 | Q6: 과오납 환부액
E7: 당 초 | F7: 최 종 | G7: 본월분 | H7: 누 계 | I7: 본월분 | J7: 누 계 | K7: 본월분 | L7: 누 계 | N7: 대목표 (당초) | O7: 대목표 (최종) | P7: 대부과 | Q7: 본월분 | R7: 누 계
A8: 총 괄 | B8: 합 계 | E8: =SUM(E9:E10) -> 257,840,400 | F8: 265,960,400 | G8: =SUM(G9:G10) -> 27,585,009 | H8: 282,690,024 | I8: 25,633,689 | J8: =SUM(J9:J10) -> 266,464,193 | K8: 216 | L8: 1,504,110 | M8: 14,721,721 | N8: =+J8/E8*100 -> 103.3 | O8: =+J8/F8*100 -> 100.2 | P8: =+J8/H8*100 -> 94.3 | Q8: =SUM(Q9:Q10) -> 156,367 | R8: =SUM(R9:R10) -> 4,087,881
B9: 도 세 | E9: =E12+E47+E48 -> 97,460,400 | F9: 97,460,400 | G9: 10,317,069 | H9: 98,697,827 | I9: 9,950,442 | J9: 94,714,113 | K9: 0 | L9: 324,140 | M9: 3,659,574 | N9: 97.2 | O9: 97.2 | P9: 96.0 | Q9: =Q12+Q47+Q48 -> 49,708 | R9: =R12+R47+R48 -> 580,749
B10: 시 군 세 | E10: =E32+E49 -> 160,380,000 | F10: =F32+F49 -> 168,500,000 | G10: 17,267,940 | H10: 183,992,197 | I10: 15,683,247 | J10: 171,750,080 | K10: 216 | L10: 1,179,970 | M10: 11,062,147 | N10: 107.1 | O10: 101.9 | P10: 93.3 | Q10: =Q32+Q49 -> 106,659 | R10: =R32+R49 -> 3,507,132
A11: 현 년 도 | B11: 계 | E11: =SUM(E12,E32) -> 256,412,900 | F11: 264,412,900 | G11: 27,583,388 | H11: 272,513,622 | I11: 25,463,444 | J11: 265,951,861 | K11: 0 | L11: 878 | M11: 6,560,883 | N11: 103.7 | O11: 100.6 | P11: 97.6 | Q11: =SUM(Q12,Q32) -> 129,479 | R11: =SUM(R12,R32) -> 1,245,629
B12: 도 세 | C12: 소 계 | E12: =SUM(E13,E14,E17,E20:E24,E25) -> 96,912,900 | F12: 96,912,900 | G12: 10,309,777 | H12: 95,632,108 | I12: 9,921,648 | J12: 94,051,891 | K12: 0 | L12: 118 | M12: 1,580,099 | N12: 97.0 | O12: 97.0 | P12: 98.3 | Q12: =SUM(Q13,Q14,Q17,Q20:Q24,Q25) -> 49,550 | R12: =SUM(R13,R14,R17,R20:R24,R25) -> 459,209
C13: 취 득 세 | E13: 62,365,100 | F13: 62,365,100 | G13: 5,028,391 | H13: 57,261,333 | I13: 5,173,401 | J13: 56,854,449 | M13: =H13-J13-L13 -> 406,884 | N13: 91.2 | O13: 91.2 | P13: 99.3 | Q13: 30,205 | R13: 258,293
C14: 등 록 면허세 | D14: 소 계 | E14: =SUM(E15:E16) -> 5,837,800 | F14: 5,837,800 | G14: 818,953 | H14: 6,538,305 | I14: 826,607 | J14: 6,513,585 | K14: 0 | L14: 77 | M14: 24,643 | N14: 111.6 | O14: 111.6 | P14: 99.6 | Q14: =SUM(Q15:Q16) -> 2,067 | R14: =SUM(R15:R16) -> 94,633
D15: 등록분 | E15: 5,344,800 | F15: 5,344,800 | G15: 797,320 | H15: 5,623,844 | I15: 797,361 | J15: 5,623,884 | M15: =H15-J15-L15 -> -40 | N15: 105.2 | O15: 105.2 | P15: 100.0 | Q15: 2,044 | R15: 17,845
D16: 면허분 | E16: 493,000 | F16: 493,000 | G16: 21,633 | H16: 914,461 | I16: 29,246 | J16: 889,701 | L16: 77 | M16: =H16-J16-L16 -> 24,683 | N16: 180.5 | O16: 180.5 | P16: 97.3 | Q16: 23 | R16: 76,788
C17: 지 역 자 원 시설세 | D17: 소 계 | E17: =SUM(E18:E19) -> 6,260,000 | F17: 6,260,000 | G17: 181,421 | H17: 8,649,341 | I17: 203,772 | J17: 8,501,308 | K17: 0 | L17: 0 | M17: 148,033 | N17: 135.8 | O17: 135.8 | P17: 98.3 | Q17: =SUM(Q18:Q19) -> 0 | R17: =SUM(R18:R19) -> 25,024
D18: 특정자원 | E18: 55,000 | F18: 55,000 | G18: 178,307 | H18: 1,116,000 | I18: 178,677 | J18: 1,115,239 | M18: =H18-J18-L18 -> 761 | N18: 2,027.7 | O18: 2,027.7 | P18: 99.9
D19: 특정부동산 | E19: 6,205,000 | F19: 6,205,000 | G19: 3,114 | H19: 7,533,341 | I19: 25,095 | J19: 7,386,069 | M19: 147,272 | N19: 119.0 | O19: 119.0 | P19: 98.0 | R19: 25,024
C20: 지방소비세 | M20: 0
C21: 등 록 세 | G21: 11,322 | H21: 248,850 | I21: 26,105 | J21: 248,725 | M21: 125 | P21: 99.9 | Q21: 49 | R21: 437
C22: 면 허 세 | M22: 0
C23: 공동시설세 | H23: 2,017 | J23: 2,017 | M23: 0 | P23: 100.0
C24: 지역개발세 | M24: 0
C25: 지 방 교 육 세 | D25: 소 계 | E25: =SUM(E26:E31) -> 22,450,000 | F25: =SUM(F26:F31) -> 22,450,000 | G25: 4,269,690 | H25: 22,932,262 | I25: 3,691,763 | J25: 21,931,807 | K25: 0 | L25: 41 | M25: 1,000,414 | N25: 97.7 | O25: 97.7 | P25: 95.6 | Q25: =SUM(Q26:Q31) -> 17,229 | R25: =SUM(R26:R31) -> 80,822
D26: 취득세분 | E26: 3,619,000 | F26: 3,619,000 | G26: 322,412 | H26: 3,223,440 | I26: 328,269 | J26: 3,201,384 | M26: =H26-J26-L26 -> 22,056 | N26: 88.5 | O26: 88.5 | P26: 99.3 | Q26: 2,167 | R26: 18,761
D27: 등록면허세분 | E27: 1,586,000 | F27: 1,586,000 | G27: 145,282 | H27: 1,035,474 | I27: 148,248 | J27: 1,035,458 | M27: 16 | N27: 65.3 | O27: 65.3 | P27: 100.0 | Q27: 418 | R27: 3,639
D28: 주민세분 | E28: 95,000 | F28: 95,000 | G28: 15 | H28: 127,038 | I28: 4,165 | J28: 110,195 | M28: 16,843 | N28: 116.0 | O28: 116.0 | P28: 86.7 | R28: 62
D29: 재산세분 | E29: 3,000,000 | F29: 3,000,000 | G29: -5,395 | H29: 4,203,567 | I29: 10,434 | J29: 4,085,420 | L29: 4 | M29: 118,143 | N29: 136.2 | O29: 136.2 | P29: 97.2 | Q29: 14,239 | R29: 22,482
D30: 자동차세분 | E30: 5,750,000 | F30: 5,750,000 | G30: 2,480,120 | H30: 6,111,138 | I30: 1,873,391 | J30: 5,267,745 | L30: 37 | M30: 843,356 | N30: 91.6 | O30: 91.6 | P30: 86.2 | Q30: 405 | R30: 35,878
D31: 담배소비세분 | E31: 8,400,000 | F31: 8,400,000 | G31: 1,327,256 | H31: 8,231,605 | I31: 1,327,256 | J31: 8,231,605 | M31: 0 | N31: 98.0 | O31: 98.0 | P31: 100.0
B32: 시 군 세 | C32: 소 계 | E32: =SUM(E33,E34,E35,E38:E45) -> 159,500,000 | F32: =SUM(F33,F34,F35,F38:F45) -> 167,500,000 | G32: 17,273,611 | H32: =SUM(H33,H34,H35,H38:H45) -> 176,881,514 | I32: 15,541,796 | J32: 171,899,970 | K32: 0 | L32: 760 | M32: 4,980,784 | N32: 107.8 | O32: 102.6 | P32: 97.2 | Q32: =SUM(Q33,Q34,Q35,Q38:Q45) -> 79,929 | R32: =SUM(R33,R34,R35,R38:R45) -> 786,420
C33: 주 민 세 | E33: 2,950,000 | F33: 9,550,000 | G33: 535,943 | H33: 9,503,127 | I33: 583,282 | J33: 9,314,446 | M33: =H33-J33-L33 -> 188,681 | N33: 315.7 | O33: 97.5 | P33: 98.0 | R33: 2,027
C34: 재 산 세 | E34: 28,000,000 | F34: 32,000,000 | G34: -5,973 | H34: 33,746,763 | I34: 117,852 | J34: 32,884,550 | L34: 35 | M34: =H34-J34-L34 -> 862,178 | N34: 117.4 | O34: 102.8 | P34: 97.4 | Q34: 71,191 | R34: 115,406
C35: 자동 차세 | D35: 소 계 | E35: =SUM(E36:E37) -> 43,300,000 | F35: =SUM(F36:F37) -> 43,300,000 | G35: 10,499,207 | H35: 46,363,391 | I35: 8,473,027 | J35: 43,469,685 | K35: 0 | L35: 123 | M35: 2,893,583 | N35: 100.4 | O35: 100.4 | P35: 93.8 | Q35: =SUM(Q36:Q37) -> 1,354 | R35: =SUM(R36:R37) -> 143,039
D36: 자동차분 | E36: 18,000,000 | F36: 18,000,000 | G36: 8,351,975 | H36: 21,517,552 | I36: 6,325,795 | J36: 18,623,846 | L36: 123 | M36: =H36-J36-L36 -> 2,893,583 | N36: 103.5 | O36: 103.5 | P36: 86.6 | Q36: 1,354 | R36: 143,039
D37: 주 행 분 | E37: 25,300,000 | F37: 25,300,000 | G37: 2,147,232 | H37: 24,845,839 | I37: 2,147,232 | J37: 24,845,839 | M37: 0 | N37: 98.2 | O37: 98.2 | P37: 100.0
C38: 담배소비세 | E38: 16,300,000 | F38: 16,300,000 | G38: 2,654,511 | H38: 16,463,236 | I38: 2,654,511 | J38: 16,463,236 | M38: 0 | N38: 101.0 | O38: 101.0 | P38: 100.0
C39: 지방소득세 | E39: 68,950,000 | F39: 66,350,000 | G39: 3,589,901 | H39: 70,803,764 | I39: 3,713,094 | J39: 69,766,820 | L39: 602 | M39: 1,036,342 | N39: 101.2 | O39: 105.1 | P39: 98.5 | Q39: 7,384 | R39: 525,948
C40: 주 행 세 | M40: 0
C41: 농업소득세 | M41: 0
C42: 도 축 세 | M42: 0
C43: 종합토지세 | M43: 0
C44: 도시계획세 | G44: 22 | H44: 1,233 | I44: 30 | J44: 1,233 | M44: 0 | P44: 100.0
C45: 사 업 소세 | M45: 0
A46: 과 년 도 | B46: 계 | E46: =SUM(E47:E49) -> 1,427,500 | F46: =SUM(F47:F49) -> 1,547,500 | G46: 1,621 | H46: 10,176,402 | I46: 170,245 | J46: 512,332 | K46: 216 | L46: 1,503,232 | M46: 8,160,838 | N46: 35.9 | O46: 33.1 | P46: 5.0 | Q46: =SUM(Q47:Q49) -> 26,888 | R46: =SUM(R47:R49) -> 2,842,252
B47: 도 세 | E47: 247,500 | F47: 247,500 | G47: 6,273 | H47: 1,739,570 | I47: 6,995 | J47: 187,176 | L47: 267,481 | M47: =H47-J47-L47 -> 1,284,913 | N47: 75.6 | O47: 75.6 | P47: 10.8 | Q47: 55 | R47: 108,438
B48: 지방교육세 | E48: 300,000 | F48: 300,000 | G48: 1,019 | H48: 1,326,149 | I48: 21,799 | J48: 475,046 | L48: 56,541 | M48: =H48-J48-L48 -> 794,562 | N48: 158.3 | O48: 158.3 | P48: 35.8 | Q48: 103 | R48: 13,102
B49: 시 군 세 | E49: 880,000 | F49: 1,000,000 | G49: -5,671 | H49: 7,110,683 | I49: 141,451 | J49: -149,890 | K49: 216 | L49: 1,179,210 | M49: =H49-J49-L49 -> 6,081,363 | N49: -17.0 | O49: -15.0 | P49: -2.1 | Q49: 26,730 | R49: 2,720,712

Sheet 1-3-1
A1: 1-3-1. 체납액 사유별 현황
A2: (총 계) | O2: (단위 : 건, 천원)
A3: 구 분 | B3: 계 | D3: 징수유예 | F3: 부도 및 경영난 | H3: 소송계류 | J3: 고질체납 | L3: 무 재 산 | N3: 행방불명
B4: 건수 | C4: 금액 | D4: 건수 | E4: 금액 | F4: 건수 | G4: 금액 | H4: 건수 | I4: 금액 | J4: 건수 | K4: 금액 | L4: 건수 | M4: 금액 | N4: 건수 | O4: 금액
A5: 합 계 | B5: =SUM(D5,F5,H5,J5,L5,N5) -> 222,858 | C5: =SUM(E5,G5,I5,K5,M5,O5,) -> 14,721,721 | D5: =D6+D16 -> 36 | E5: 416,387 | F5: 64,142 | G5: 6,946,817 | H5: 5 | I5: 27,096 | J5: 121,282 | K5: 5,192,051 | L5: 18,074 | M5: 1,195,190 | N5: 19,319 | O5: 944,180
A6: 도세 계 | B6: =SUM(D6,F6,H6,J6,L6,N6) -> 107,080 | C6: =SUM(E6,G6,I6,K6,M6,O6,) -> 3,659,574 | D6: =SUM(D7:D15) -> 9 | E6: =SUM(E7:E15) -> 25,499 | F6: 29,897 | G6: =SUM(G7:G15) -> 2,149,986 | H6: 0 | I6: 0 | J6: 58,063 | K6: 1,113,998 | L6: 9,256 | M6: 163,812 | N6: 9,855 | O6: 206,279
A7: 취 득 세 | B7: 791 | C7: =SUM(E7,G7,I7,K7,M7,O7,) -> 1,410,421 | D7: =SUM('1-3-2'!D7,'1-3-3'!D7) -> 0 | E7: =SUM('1-3-2'!E7,'1-3-3'!E7) -> 0 | F7: =SUM('1-3-2'!F7,'1-3-3'!F7) -> 273 | G7: =SUM('1-3-2'!G7,'1-3-3'!G7) -> 1,017,797 | H7: =SUM('1-3-2'!H7,'1-3-3'!H7) -> 0 | I7: =SUM('1-3-2'!I7,'1-3-3'!I7) -> 0 | J7: =SUM('1-3-2'!J7,'1-3-3'!J7) -> 371 | K7: =SUM('1-3-2'!K7,'1-3-3'!K7) -> 275,723 | L7: =SUM('1-3-2'!L7,'1-3-3'!L7) -> 99 | M7: =SUM('1-3-2'!M7,'1-3-3'!M7) -> 80,522 | N7: =SUM('1-3-2'!N7,'1-3-3'!N7) -> 48 | O7: =SUM('1-3-2'!O7,'1-3-3'!O7) -> 36,379
A8: 등록면허세 | B8: 2,569 | C8: 38,795 | D8: =SUM('1-3-2'!D8,'1-3-3'!D8) -> 0 | E8: =SUM('1-3-2'!E8,'1-3-3'!E8) -> 0 | F8: =SUM('1-3-2'!F8,'1-3-3'!F8) -> 754 | G8: =SUM('1-3-2'!G8,'1-3-3'!G8) -> 12,391 | H8: =SUM('1-3-2'!H8,'1-3-3'!H8) -> 0 | I8: =SUM('1-3-2'!I8,'1-3-3'!I8) -> 0 | J8: =SUM('1-3-2'!J8,'1-3-3'!J8) -> 1,747 | K8: =SUM('1-3-2'!K8,'1-3-3'!K8) -> 25,457 | L8: =SUM('1-3-2'!L8,'1-3-3'!L8) -> 23 | M8: =SUM('1-3-2'!M8,'1-3-3'!M8) -> 369 | N8: =SUM('1-3-2'!N8,'1-3-3'!N8) -> 45 | O8: =SUM('1-3-2'!O8,'1-3-3'!O8) -> 578
A9: 지역자원시설세 | B9: 4,092 | C9: 289,966 | D9: =SUM('1-3-2'!D9,'1-3-3'!D9) -> 0 | E9: =SUM('1-3-2'!E9,'1-3-3'!E9) -> 0 | F9: =SUM('1-3-2'!F9,'1-3-3'!F9) -> 1,626 | G9: =SUM('1-3-2'!G9,'1-3-3'!G9) -> 206,724 | H9: =SUM('1-3-2'!H9,'1-3-3'!H9) -> 0 | I9: =SUM('1-3-2'!I9,'1-3-3'!I9) -> 0 | J9: =SUM('1-3-2'!J9,'1-3-3'!J9) -> 1,957 | K9: =SUM('1-3-2'!K9,'1-3-3'!K9) -> 70,816 | L9: =SUM('1-3-2'!L9,'1-3-3'!L9) -> 50 | M9: =SUM('1-3-2'!M9,'1-3-3'!M9) -> 1,150 | N9: =SUM('1-3-2'!N9,'1-3-3'!N9) -> 459 | O9: =SUM('1-3-2'!O9,'1-3-3'!O9) -> 11,276
A10: 지방소비세 | B10: 0 | C10: 0 | D10: =SUM('1-3-2'!D10,'1-3-3'!D10) -> 0 | E10: =SUM('1-3-2'!E10,'1-3-3'!E10) -> 0 | F10: =SUM('1-3-2'!F10,'1-3-3'!F10) -> 0 | G10: =SUM('1-3-2'!G10,'1-3-3'!G10) -> 0 | H10: =SUM('1-3-2'!H10,'1-3-3'!H10) -> 0 | I10: =SUM('1-3-2'!I10,'1-3-3'!I10) -> 0 | J10: =SUM('1-3-2'!J10,'1-3-3'!J10) -> 0 | K10: =SUM('1-3-2'!K10,'1-3-3'!K10) -> 0 | L10: =SUM('1-3-2'!L10,'1-3-3'!L10) -> 0 | M10: =SUM('1-3-2'!M10,'1-3-3'!M10) -> 0 | N10: =SUM('1-3-2'!N10,'1-3-3'!N10) -> 0 | O10: =SUM('1-3-2'!O10,'1-3-3'!O10) -> 0
A11: 등록세 | B11: 115 | C11: 66,258 | D11: =SUM('1-3-2'!D11,'1-3-3'!D11) -> 0 | E11: =SUM('1-3-2'!E11,'1-3-3'!E11) -> 0 | F11: =SUM('1-3-2'!F11,'1-3-3'!F11) -> 59 | G11: =SUM('1-3-2'!G11,'1-3-3'!G11) -> 48,080 | H11: =SUM('1-3-2'!H11,'1-3-3'!H11) -> 0 | I11: =SUM('1-3-2'!I11,'1-3-3'!I11) -> 0 | J11: =SUM('1-3-2'!J11,'1-3-3'!J11) -> 40 | K11: =SUM('1-3-2'!K11,'1-3-3'!K11) -> 16,581 | L11: =SUM('1-3-2'!L11,'1-3-3'!L11) -> 11 | M11: =SUM('1-3-2'!M11,'1-3-3'!M11) -> 1,344 | N11: =SUM('1-3-2'!N11,'1-3-3'!N11) -> 5 | O11: =SUM('1-3-2'!O11,'1-3-3'!O11) -> 253
A12: 면허세 | B12: 1,129 | C12: 13,230 | D12: =SUM('1-3-2'!D12,'1-3-3'!D12) -> 0 | E12: =SUM('1-3-2'!E12,'1-3-3'!E12) -> 0 | F12: =SUM('1-3-2'!F12,'1-3-3'!F12) -> 395 | G12: =SUM('1-3-2'!G12,'1-3-3'!G12) -> 4,713 | H12: =SUM('1-3-2'!H12,'1-3-3'!H12) -> 0 | I12: =SUM('1-3-2'!I12,'1-3-3'!I12) -> 0 | J12: =SUM('1-3-2'!J12,'1-3-3'!J12) -> 555 | K12: =SUM('1-3-2'!K12,'1-3-3'!K12) -> 6,659 | L12: =SUM('1-3-2'!L12,'1-3-3'!L12) -> 97 | M12: =SUM('1-3-2'!M12,'1-3-3'!M12) -> 979 | N12: =SUM('1-3-2'!N12,'1-3-3'!N12) -> 82 | O12: =SUM('1-3-2'!O12,'1-3-3'!O12) -> 879
A13: 공동시설세 | B13: 942 | C13: 45,587 | D13: =SUM('1-3-2'!D13,'1-3-3'!D13) -> 3 | E13: =SUM('1-3-2'!E13,'1-3-3'!E13) -> 4,928 | F13: =SUM('1-3-2'!F13,'1-3-3'!F13) -> 481 | G13: =SUM('1-3-2'!G13,'1-3-3'!G13) -> 28,944 | H13: =SUM('1-3-2'!H13,'1-3-3'!H13) -> 0 | I13: =SUM('1-3-2'!I13,'1-3-3'!I13) -> 0 | J13: =SUM('1-3-2'!J13,'1-3-3'!J13) -> 250 | K13: =SUM('1-3-2'!K13,'1-3-3'!K13) -> 6,974 | L13: =SUM('1-3-2'!L13,'1-3-3'!L13) -> 108 | M13: =SUM('1-3-2'!M13,'1-3-3'!M13) -> 2,886 | N13: =SUM('1-3-2'!N13,'1-3-3'!N13) -> 100 | O13: =SUM('1-3-2'!O13,'1-3-3'!O13) -> 1,855
A14: 지역개발세 | B14: 39 | C14: 341 | D14: =SUM('1-3-2'!D14,'1-3-3'!D14) -> 0 | E14: =SUM('1-3-2'!E14,'1-3-3'!E14) -> 0 | F14: =SUM('1-3-2'!F14,'1-3-3'!F14) -> 22 | G14: =SUM('1-3-2'!G14,'1-3-3'!G14) -> 196 | H14: =SUM('1-3-2'!H14,'1-3-3'!H14) -> 0 | I14: =SUM('1-3-2'!I14,'1-3-3'!I14) -> 0 | J14: =SUM('1-3-2'!J14,'1-3-3'!J14) -> 10 | K14: =SUM('1-3-2'!K14,'1-3-3'!K14) -> 108 | L14: =SUM('1-3-2'!L14,'1-3-3'!L14) -> 0 | M14: =SUM('1-3-2'!M14,'1-3-3'!M14) -> 0 | N14: =SUM('1-3-2'!N14,'1-3-3'!N14) -> 7 | O14: =SUM('1-3-2'!O14,'1-3-3'!O14) -> 37
A15: 지방교육세 | B15: 97,403 | C15: 1,794,976 | D15: =SUM('1-3-2'!D15,'1-3-3'!D15) -> 6 | E15: =SUM('1-3-2'!E15,'1-3-3'!E15) -> 20,571 | F15: =SUM('1-3-2'!F15,'1-3-3'!F15) -> 26,287 | G15: =SUM('1-3-2'!G15,'1-3-3'!G15) -> 831,141 | H15: =SUM('1-3-2'!H15,'1-3-3'!H15) -> 0 | I15: =SUM('1-3-2'!I15,'1-3-3'!I15) -> 0 | J15: =SUM('1-3-2'!J15,'1-3-3'!J15) -> 53,133 | K15: =SUM('1-3-2'!K15,'1-3-3'!K15) -> 711,680 | L15: =SUM('1-3-2'!L15,'1-3-3'!L15) -> 8,868 | M15: =SUM('1-3-2'!M15,'1-3-3'!M15) -> 76,562 | N15: =SUM('1-3-2'!N15,'1-3-3'!N15) -> 9,109 | O15: =SUM('1-3-2'!O15,'1-3-3'!O15) -> 155,022
A16: 시군세 계 | B16: 115,778 | C16: 11,062,147 | D16: =SUM(D17:D27) -> 27 | E16: =SUM(E17:E27) -> 390,888 | F16: 34,245 | G16: 4,796,831 | H16: 5 | I16: 27,096 | J16: 63,219 | K16: 4,078,053 | L16: 8,818 | M16: 1,031,378 | N16: 9,464 | O16: 737,901
A17: 주 민 세 | B17: 51,586 | C17: 909,474 | D17: =SUM('1-3-2'!D17,'1-3-3'!D17) -> 2 | E17: =SUM('1-3-2'!E17,'1-3-3'!E17) -> 5,805 | F17: =SUM('1-3-2'!F17,'1-3-3'!F17) -> 10,715 | G17: =SUM('1-3-2'!G17,'1-3-3'!G17) -> 508,663 | H17: =SUM('1-3-2'!H17,'1-3-3'!H17) -> 0 | I17: =SUM('1-3-2'!I17,'1-3-3'!I17) -> 0 | J17: =SUM('1-3-2'!J17,'1-3-3'!J17) -> 32,599 | K17: =SUM('1-3-2'!K17,'1-3-3'!K17) -> 226,830 | L17: =SUM('1-3-2'!L17,'1-3-3'!L17) -> 4,552 | M17: =SUM('1-3-2'!M17,'1-3-3'!M17) -> 71,145 | N17: =SUM('1-3-2'!N17,'1-3-3'!N17) -> 3,718 | O17: =SUM('1-3-2'!O17,'1-3-3'!O17) -> 97,031
A18: 재 산 세 | B18: 23,949 | C18: 2,160,240 | D18: =SUM('1-3-2'!D18,'1-3-3'!D18) -> 9 | E18: =SUM('1-3-2'!E18,'1-3-3'!E18) -> 337,372 | F18: =SUM('1-3-2'!F18,'1-3-3'!F18) -> 9,912 | G18: =SUM('1-3-2'!G18,'1-3-3'!G18) -> 1,093,747 | H18: =SUM('1-3-2'!H18,'1-3-3'!H18) -> 0 | I18: =SUM('1-3-2'!I18,'1-3-3'!I18) -> 0 | J18: =SUM('1-3-2'!J18,'1-3-3'!J18) -> 11,520 | K18: =SUM('1-3-2'!K18,'1-3-3'!K18) -> 597,910 | L18: =SUM('1-3-2'!L18,'1-3-3'!L18) -> 778 | M18: =SUM('1-3-2'!M18,'1-3-3'!M18) -> 84,237 | N18: =SUM('1-3-2'!N18,'1-3-3'!N18) -> 1,730 | O18: =SUM('1-3-2'!O18,'1-3-3'!O18) -> 46,974
A19: 자동차세 | B19: 33,172 | C19: 5,095,469 | D19: =SUM('1-3-2'!D19,'1-3-3'!D19) -> 0 | E19: =SUM('1-3-2'!E19,'1-3-3'!E19) -> 0 | F19: =SUM('1-3-2'!F19,'1-3-3'!F19) -> 11,190 | G19: =SUM('1-3-2'!G19,'1-3-3'!G19) -> 1,897,510 | H19: =SUM('1-3-2'!H19,'1-3-3'!H19) -> 0 | I19: =SUM('1-3-2'!I19,'1-3-3'!I19) -> 0 | J19: =SUM('1-3-2'!J19,'1-3-3'!J19) -> 15,892 | K19: =SUM('1-3-2'!K19,'1-3-3'!K19) -> 2,474,228 | L19: =SUM('1-3-2'!L19,'1-3-3'!L19) -> 2,627 | M19: =SUM('1-3-2'!M19,'1-3-3'!M19) -> 251,649 | N19: =SUM('1-3-2'!N19,'1-3-3'!N19) -> 3,463 | O19: =SUM('1-3-2'!O19,'1-3-3'!O19) -> 472,082
A20: 담배소비세 | B20: 0 | C20: 0 | D20: =SUM('1-3-2'!D20,'1-3-3'!D20) -> 0 | E20: =SUM('1-3-2'!E20,'1-3-3'!E20) -> 0 | F20: =SUM('1-3-2'!F20,'1-3-3'!F20) -> 0 | G20: =SUM('1-3-2'!G20,'1-3-3'!G20) -> 0 | H20: =SUM('1-3-2'!H20,'1-3-3'!H20) -> 0 | I20: =SUM('1-3-2'!I20,'1-3-3'!I20) -> 0 | J20: =SUM('1-3-2'!J20,'1-3-3'!J20) -> 0 | K20: =SUM('1-3-2'!K20,'1-3-3'!K20) -> 0 | L20: =SUM('1-3-2'!L20,'1-3-3'!L20) -> 0 | M20: =SUM('1-3-2'!M20,'1-3-3'!M20) -> 0 | N20: =SUM('1-3-2'!N20,'1-3-3'!N20) -> 0 | O20: =SUM('1-3-2'!O20,'1-3-3'!O20) -> 0
A21: 지방소득세 | B21: 3,103 | C21: 2,671,650 | D21: =SUM('1-3-2'!D21,'1-3-3'!D21) -> 15 | E21: =SUM('1-3-2'!E21,'1-3-3'!E21) -> 40,695 | F21: =SUM('1-3-2'!F21,'1-3-3'!F21) -> 853 | G21: =SUM('1-3-2'!G21,'1-3-3'!G21) -> 1,148,464 | H21: =SUM('1-3-2'!H21,'1-3-3'!H21) -> 5 | I21: =SUM('1-3-2'!I21,'1-3-3'!I21) -> 27,096 | J21: =SUM('1-3-2'!J21,'1-3-3'!J21) -> 1,880 | K21: =SUM('1-3-2'!K21,'1-3-3'!K21) -> 743,244 | L21: =SUM('1-3-2'!L21,'1-3-3'!L21) -> 275 | M21: =SUM('1-3-2'!M21,'1-3-3'!M21) -> 604,724 | N21: =SUM('1-3-2'!N21,'1-3-3'!N21) -> 75 | O21: =SUM('1-3-2'!O21,'1-3-3'!O21) -> 107,427
A22: 주행세 | B22: 0 | C22: 0 | D22: =SUM('1-3-2'!D22,'1-3-3'!D22) -> 0 | E22: =SUM('1-3-2'!E22,'1-3-3'!E22) -> 0 | F22: =SUM('1-3-2'!F22,'1-3-3'!F22) -> 0 | G22: =SUM('1-3-2'!G22,'1-3-3'!G22) -> 0 | H22: =SUM('1-3-2'!H22,'1-3-3'!H22) -> 0 | I22: =SUM('1-3-2'!I22,'1-3-3'!I22) -> 0 | J22: =SUM('1-3-2'!J22,'1-3-3'!J22) -> 0 | K22: =SUM('1-3-2'!K22,'1-3-3'!K22) -> 0 | L22: =SUM('1-3-2'!L22,'1-3-3'!L22) -> 0 | M22: =SUM('1-3-2'!M22,'1-3-3'!M22) -> 0 | N22: =SUM('1-3-2'!N22,'1-3-3'!N22) -> 0 | O22: =SUM('1-3-2'!O22,'1-3-3'!O22) -> 0
A23: 농업소득세 | B23: 0 | C23: 0 | D23: =SUM('1-3-2'!D23,'1-3-3'!D23) -> 0 | E23: =SUM('1-3-2'!E23,'1-3-3'!E23) -> 0 | F23: =SUM('1-3-2'!F23,'1-3-3'!F23) -> 0 | G23: =SUM('1-3-2'!G23,'1-3-3'!G23) -> 0 | H23: =SUM('1-3-2'!H23,'1-3-3'!H23) -> 0 | I23: =SUM('1-3-2'!I23,'1-3-3'!I23) -> 0 | J23: =SUM('1-3-2'!J23,'1-3-3'!J23) -> 0 | K23: =SUM('1-3-2'!K23,'1-3-3'!K23) -> 0 | L23: =SUM('1-3-2'!L23,'1-3-3'!L23) -> 0 | M23: =SUM('1-3-2'!M23,'1-3-3'!M23) -> 0 | N23: =SUM('1-3-2'!N23,'1-3-3'!N23) -> 0 | O23: =SUM('1-3-2'!O23,'1-3-3'!O23) -> 0
A24: 도축세 | B24: 0 | C24: 0 | D24: =SUM('1-3-2'!D24,'1-3-3'!D24) -> 0 | E24: =SUM('1-3-2'!E24,'1-3-3'!E24) -> 0 | F24: =SUM('1-3-2'!F24,'1-3-3'!F24) -> 0 | G24: =SUM('1-3-2'!G24,'1-3-3'!G24) -> 0 | H24: =SUM('1-3-2'!H24,'1-3-3'!H24) -> 0 | I24: =SUM('1-3-2'!I24,'1-3-3'!I24) -> 0 | J24: =SUM('1-3-2'!J24,'1-3-3'!J24) -> 0 | K24: =SUM('1-3-2'!K24,'1-3-3'!K24) -> 0 | L24: =SUM('1-3-2'!L24,'1-3-3'!L24) -> 0 | M24: =SUM('1-3-2'!M24,'1-3-3'!M24) -> 0 | N24: =SUM('1-3-2'!N24,'1-3-3'!N24) -> 0 | O24: =SUM('1-3-2'!O24,'1-3-3'!O24) -> 0
A25: 종합토지세 | B25: 1,261 | C25: 88,039 | D25: =SUM('1-3-2'!D25,'1-3-3'!D25) -> 0 | E25: =SUM('1-3-2'!E25,'1-3-3'!E25) -> 0 | F25: =SUM('1-3-2'!F25,'1-3-3'!F25) -> 608 | G25: =SUM('1-3-2'!G25,'1-3-3'!G25) -> 61,267 | H25: =SUM('1-3-2'!H25,'1-3-3'!H25) -> 0 | I25: =SUM('1-3-2'!I25,'1-3-3'!I25) -> 0 | J25: =SUM('1-3-2'!J25,'1-3-3'!J25) -> 373 | K25: =SUM('1-3-2'!K25,'1-3-3'!K25) -> 10,837 | L25: =SUM('1-3-2'!L25,'1-3-3'!L25) -> 130 | M25: =SUM('1-3-2'!M25,'1-3-3'!M25) -> 6,427 | N25: =SUM('1-3-2'!N25,'1-3-3'!N25) -> 150 | O25: =SUM('1-3-2'!O25,'1-3-3'!O25) -> 9,508
A26: 도시계획세 | B26: 2,681 | C26: 122,858 | D26: =SUM('1-3-2'!D26,'1-3-3'!D26) -> 1 | E26: =SUM('1-3-2'!E26,'1-3-3'!E26) -> 7,016 | F26: =SUM('1-3-2'!F26,'1-3-3'!F26) -> 952 | G26: =SUM('1-3-2'!G26,'1-3-3'!G26) -> 77,329 | H26: =SUM('1-3-2'!H26,'1-3-3'!H26) -> 0 | I26: =SUM('1-3-2'!I26,'1-3-3'!I26) -> 0 | J26: =SUM('1-3-2'!J26,'1-3-3'!J26) -> 949 | K26: =SUM('1-3-2'!K26,'1-3-3'!K26) -> 23,839 | L26: =SUM('1-3-2'!L26,'1-3-3'!L26) -> 454 | M26: =SUM('1-3-2'!M26,'1-3-3'!M26) -> 11,745 | N26: =SUM('1-3-2'!N26,'1-3-3'!N26) -> 325 | O26: =SUM('1-3-2'!O26,'1-3-3'!O26) -> 2,929
A27: 사업소세 | B27: 26 | C27: 14,417 | D27: =SUM('1-3-2'!D27,'1-3-3'!D27) -> 0 | E27: =SUM('1-3-2'!E27,'1-3-3'!E27) -> 0 | F27: =SUM('1-3-2'!F27,'1-3-3'!F27) -> 15 | G27: =SUM('1-3-2'!G27,'1-3-3'!G27) -> 9,851 | H27: =SUM('1-3-2'!H27,'1-3-3'!H27) -> 0 | I27: =SUM('1-3-2'!I27,'1-3-3'!I27) -> 0 | J27: =SUM('1-3-2'!J27,'1-3-3'!J27) -> 6 | K27: =SUM('1-3-2'!K27,'1-3-3'!K27) -> 1,165 | L27: =SUM('1-3-2'!L27,'1-3-3'!L27) -> 2 | M27: =SUM('1-3-2'!M27,'1-3-3'!M27) -> 1,451 | N27: =SUM('1-3-2'!N27,'1-3-3'!N27) -> 3 | O27: =SUM('1-3-2'!O27,'1-3-3'!O27) -> 1,950

Sheet 1-3-2
A1: 1-3-2. 체납액 사유별 현황
A2: (현년도) | O2: (단위 : 건, 천원)
A3: 구 분 | B3: 계 | D3: 징수유예 | F3: 부도 및 경영난 | H3: 소송계류 | J3: 고질체납 | L3: 무 재 산 | N3: 행방불명
B4: 건수 | C4: 금액 | D4: 건수 | E4: 금액 | F4: 건수 | G4: 금액 | H4: 건수 | I4: 금액 | J4: 건수 | K4: 금액 | L4: 건수 | M4: 금액 | N4: 건수 | O4: 금액
A5: 합 계 | B5: =+B6+B16 -> 82,274 | C5: 6,560,883 | D5: 0 | E5: 0 | F5: =+F6+F16 -> 11,021 | G5: =+G6+G16 -> 2,340,935 | H5: 0 | I5: 0 | J5: 61,672 | K5: 3,389,193 | L5: 3,222 | M5: 390,890 | N5: 6,359 | O5: 439,865
A6: 도세 계 | B6: =SUM(B7:B15) -> 41,161 | C6: 1,580,099 | D6: 0 | E6: 0 | F6: =SUM(F7:F15) -> 5,181 | G6: =SUM(G7:G15) -> 791,124 | H6: 0 | I6: 0 | J6: 30,925 | K6: 652,594 | L6: 1,687 | M6: 42,985 | N6: 3,368 | O6: 93,396
A7: 취 득 세 | B7: =SUM(D7,F7,H7,J7,L7,N7) -> 207 | C7: =SUM(E7,G7,I7,K7,M7,O7) -> 406,884 | D7: 0 | E7: 0 | F7: 61 | G7: 294,301 | J7: 125 | K7: 108,887 | L7: 21 | M7: 3,696
A8: 등록면허세 | B8: =SUM(D8,F8,H8,J8,L8,N8) -> 1,396 | C8: 24,643 | F8: 271 | G8: 6,285 | J8: 1,110 | K8: 17,989 | L8: 1 | M8: 123 | N8: 14 | O8: 246
A9: 지역자원시설세 | B9: 2,604 | C9: 148,033 | F9: 886 | G9: 102,142 | J9: 1,381 | K9: 38,627 | L9: 50 | M9: 1,150 | N9: 287 | O9: 6,114
A10: 지방소비세 | B10: 0 | C10: 0
A11: 등록세 | B11: 1 | C11: 125 | D11: 0 | E11: 0 | J11: 1 | K11: 125 | L11: 0 | M11: 0
A12: 면허세 | B12: 0 | C12: 0
A13: 공동시설세 | B13: 0 | C13: 0
A14: 지역개발세 | B14: 0 | C14: 0
A15: 지방교육세 | B15: 36,953 | C15: 1,000,414 | D15: 0 | E15: 0 | F15: 3,963 | G15: 388,396 | J15: 28,308 | K15: 486,966 | L15: 1,615 | M15: 38,016 | N15: 3,067 | O15: 87,036
A16: 시군세 계 | B16: =SUM(B17:B27) -> 41,113 | C16: 4,980,784 | D16: 0 | E16: 0 | F16: =SUM(F17:F27) -> 5,840 | G16: =SUM(G17:G27) -> 1,549,811 | H16: 0 | I16: 0 | J16: 30,747 | K16: 2,736,599 | L16: 1,535 | M16: 347,905 | N16: 2,991 | O16: 346,469
A17: 주 민 세 | B17: =SUM(D17,F17,H17,J17,L17,N17) -> 22,136 | C17: =SUM(E17,G17,I17,K17,M17,O17) -> 188,681 | F17: 1,278 | G17: 21,325 | J17: 17,932 | K17: 145,827 | L17: 1,158 | M17: 7,491 | N17: 1,768 | O17: 14,038
A18: 재 산 세 | B18: =SUM(D18,F18,H18,J18,L18,N18) -> 9,801 | C18: 862,178 | F18: 2,532 | G18: 450,057 | J18: 6,851 | K18: 399,964 | N18: 418 | O18: 12,157
A19: 자동차세 | B19: 7,963 | C19: 2,893,583 | F19: 1,754 | G19: 743,211 | J19: 5,079 | K19: 1,753,951 | L19: 358 | M19: 118,637 | N19: 772 | O19: 277,784
A20: 담배소비세 | B20: 0 | C20: 0
A21: 지방소득세 | B21: 1,213 | C21: 1,036,342 | F21: 276 | G21: 335,218 | J21: 885 | K21: 436,857 | L21: 19 | M21: 221,777 | N21: 33 | O21: 42,490
A22: 주행세 | B22: 0 | C22: 0
A23: 농업소득세 | B23: 0 | C23: 0
A24: 도축세 | B24: 0 | C24: 0
A25: 종합토지세 | B25: 0 | C25: 0
A26: 도시계획세 | B26: 0 | C26: 0 | F26: 0 | G26: 0
A27: 사업소세 | B27: 0 | C27: 0

Sheet 1-3-3
A1: 1-3-3. 체납액 사유별 현황
A2: (과년도) | O2: (단위 : 건, 천원)
A3: 구 분 | B3: 계 | D3: 징수유예 | F3: 부도 및 경영난 | H3: 소송계류 | J3: 고질체납 | L3: 무 재 산 | N3: 행방불명
B4: 건수 | C4: 금액 | D4: 건수 | E4: 금액 | F4: 건수 | G4: 금액 | H4: 건수 | I4: 금액 | J4: 건수 | K4: 금액 | L4: 건수 | M4: 금액 | N4: 건수 | O4: 금액
A5: 합 계 | B5: =+B6+B16 -> 140,584 | C5: 8,160,838 | D5: 36 | E5: 416,387 | F5: =+F6+F16 -> 53,121 | G5: =+G6+G16 -> 4,605,882 | H5: 5 | I5: 27,096 | J5: 59,610 | K5: 1,802,858 | L5: 14,852 | M5: 804,300 | N5: 12,960 | O5: 504,315
A6: 도세 계 | B6: =SUM(B7:B15) -> 65,919 | C6: 2,079,475 | D6: 9 | E6: 25,499 | F6: =SUM(F7:F15) -> 24,716 | G6: =SUM(G7:G15) -> 1,358,862 | H6: 0 | I6: 0 | J6: 27,138 | K6: 461,404 | L6: 7,569 | M6: 120,827 | N6: 6,487 | O6: 112,883
A7: 취 득 세 | B7: =SUM(D7,F7,H7,J7,L7,N7) -> 584 | C7: 1,003,537 | F7: 212 | G7: 723,496 | J7: 246 | K7: 166,836 | L7: 78 | M7: 76,826 | N7: 48 | O7: 36,379
A8: 등록면허세 | B8: 1,173 | C8: 14,152 | F8: 483 | G8: 6,106 | J8: 637 | K8: 7,468 | L8: 22 | M8: 246 | N8: 31 | O8: 332
A9: 지역자원시설세 | B9: 1,488 | C9: 141,933 | F9: 740 | G9: 104,582 | J9: 576 | K9: 32,189 | N9: 172 | O9: 5,162
A10: 지방소비세 | B10: 0 | C10: 0
A11: 등록세 | B11: =SUM(D11,F11,H11,J11,L11,N11) -> 114 | C11: 66,133 | F11: 59 | G11: 48,080 | J11: 39 | K11: 16,456 | L11: 11 | M11: 1,344 | N11: 5 | O11: 253
A12: 면허세 | B12: 1,129 | C12: 13,230 | F12: 395 | G12: 4,713 | J12: 555 | K12: 6,659 | L12: 97 | M12: 979 | N12: 82 | O12: 879
A13: 공동시설세 | B13: 942 | C13: 45,587 | D13: 3 | E13: 4,928 | F13: 481 | G13: 28,944 | J13: 250 | K13: 6,974 | L13: 108 | M13: 2,886 | N13: 100 | O13: 1,855
A14: 지역개발세 | B14: 39 | C14: 341 | F14: 22 | G14: 196 | J14: 10 | K14: 108 | N14: 7 | O14: 37
A15: 지방교육세 | B15: 60,450 | C15: 794,562 | D15: 6 | E15: 20,571 | F15: 22,324 | G15: 442,745 | J15: 24,825 | K15: 224,714 | L15: 7,253 | M15: 38,546 | N15: 6,042 | O15: 67,986
A16: 시군세 계 | B16: =SUM(B17:B27) -> 74,665 | C16: 6,081,363 | D16: 27 | E16: 390,888 | F16: =SUM(F17:F27) -> 28,405 | G16: =SUM(G17:G27) -> 3,247,020 | H16: 5 | I16: 27,096 | J16: 32,472 | K16: 1,341,454 | L16: 7,283 | M16: 683,473 | N16: 6,473 | O16: 391,432
A17: 주 민 세 | B17: =SUM(D17,F17,H17,J17,L17,N17) -> 29,450 | C17: =SUM(E17,G17,I17,K17,M17,O17) -> 720,793 | D17: 2 | E17: 5,805 | F17: 9,437 | G17: 487,338 | J17: 14,667 | K17: 81,003 | L17: 3,394 | M17: 63,654 | N17: 1,950 | O17: 82,993
A18: 재 산 세 | B18: =SUM(D18,F18,H18,J18,L18,N18) -> 14,148 | C18: 1,298,062 | D18: 9 | E18: 337,372 | F18: 7,380 | G18: 643,690 | J18: 4,669 | K18: 197,946 | L18: 778 | M18: 84,237 | N18: 1,312 | O18: 34,817
A19: 자동차세 | B19: 25,209 | C19: 2,201,886 | F19: 9,436 | G19: 1,154,299 | J19: 10,813 | K19: 720,277 | L19: 2,269 | M19: 133,012 | N19: 2,691 | O19: 194,298
A20: 담배소비세 | B20: =SUM(D20,F20,H20,J20,L20,N20) -> 0 | C20: =SUM(E20,G20,I20,K20,M20,O20) -> 0
A21: 지방소득세 | B21: 1,890 | C21: 1,635,308 | D21: 15 | E21: 40,695 | F21: 577 | G21: 813,246 | H21: 5 | I21: 27,096 | J21: 995 | K21: 306,387 | L21: 256 | M21: 382,947 | N21: 42 | O21: 64,937
A22: 주행세 | B22: 0 | C22: 0
A23: 농업소득세 | B23: 0 | C23: 0
A24: 도축세 | B24: 0 | C24: 0
A25: 종합토지세 | B25: 1,261 | C25: 88,039 | F25: 608 | G25: 61,267 | J25: 373 | K25: 10,837 | L25: 130 | M25: 6,427 | N25: 150 | O25: 9,508
A26: 도시계획세 | B26: 2,681 | C26: 122,858 | D26: 1 | E26: 7,016 | F26: 952 | G26: 77,329 | J26: 949 | K26: 23,839 | L26: 454 | M26: 11,745 | N26: 325 | O26: 2,929
A27: 사업소세 | B27: 26 | C27: 14,417 | F27: 15 | G27: 9,851 | J27: 6 | K27: 1,165 | L27: 2 | M27: 1,451 | N27: 3 | O27: 1,950

Sheet 1-1채권확보
A1: 1-1. 체납액 채권확보(재산압류) 내역
H2: (단위 : 천원)
A3: 구 분 | C3: 계 | E3: 현 년 도 | G3: 과 년 도
C4: 건 수 | D4: 금 액 | E4: 건 수 | F4: 금 액 | G4: 건 수 | H4: 금 액
A5: 합 계 | C5: =SUM(C6,C16) -> 188,520 | D5: 12,672,798 | E5: 67,748 | F5: 5,738,559 | G5: 120,772 | H5: 6,934,239
A6: 도 세 | B6: 소 계 | C6: =SUM(C7:C15) -> 91,227 | D6: 3,090,938 | E6: 33,948 | F6: 1,303,549 | G6: 57,279 | H6: 1,787,389
B7: 취 득 세 | C7: =SUM(E7,G7) -> 668 | D7: 1,190,720 | E7: 172 | F7: 337,714 | G7: 496 | H7: 853,006
B8: 등록면허세 | C8: 2,032 | D8: 30,370 | E8: 1,047 | F8: 18,482 | G8: 985 | H8: 11,888
B9: 지역자원시설세 | C9: =SUM(E9,G9) -> 3,381 | D9: =SUM(F9,H9) -> 243,266 | E9: 2,057 | F9: 116,946 | G9: 1,324 | H9: 126,320
B10: 지방소비세 | C10: 0 | D10: 0 | E10: 0 | F10: 0 | G10: 0 | H10: 0
B11: 등록세 | C11: 92 | D11: 52,969 | E11: 1 | F11: 63 | G11: 91 | H11: 52,906
B12: 면허세 | C12: 914 | D12: 10,716 | E12: 0 | F12: 0 | G12: 914 | H12: 10,716
B13: 공동시설세 | C13: 848 | D13: 41,028 | E13: 0 | F13: 0 | G13: 848 | H13: 41,028
B14: 지역개발세 | C14: =SUM(E14,G14) -> 29 | D14: =SUM(F14,H14) -> 256 | E14: 0 | F14: 0 | G14: 29 | H14: 256
B15: 지방교육세 | C15: 83,263 | D15: 1,521,613 | E15: 30,671 | F15: 830,344 | G15: 52,592 | H15: 691,269
A16: 시 군 세 | B16: 소 계 | C16: =SUM(C17:C27) -> 97,293 | D16: 9,581,860 | E16: 33,800 | F16: 4,435,010 | G16: 63,493 | H16: 5,146,850
B17: 주 민 세 | C17: =SUM(E17,G17) -> 39,868 | D17: 710,937 | E17: 16,602 | F17: 141,511 | G17: 23,266 | H17: 569,426
B18: 재 산 세 | C18: 21,173 | D18: 1,909,633 | E18: 8,723 | F18: 767,338 | G18: 12,450 | H18: 1,142,295
B19: 자 동 차세 | C19: 30,757 | D19: 4,774,639 | E19: 7,565 | F19: 2,748,904 | G19: 23,192 | H19: 2,025,735
B20: 담배소비세 | C20: 0 | D20: 0 | E20: 0 | F20: 0 | G20: 0 | H20: 0
B21: 지방소득세 | C21: 2,328 | D21: 2,003,738 | E21: 910 | F21: 777,257 | G21: 1,418 | H21: 1,226,481
B22: 주행세 | C22: 0 | D22: 0 | E22: 0 | F22: 0 | G22: 0 | H22: 0
B23: 농업소득세 | C23: 0 | D23: 0 | E23: 0 | F23: 0 | G23: 0 | H23: 0
B24: 도축세 | C24: 0 | D24: 0 | E24: 0 | F24: 0 | G24: 0 | H24: 0
B25: 종합토지세 | C25: 1,135 | D25: 79,235 | E25: 0 | F25: 0 | G25: 1,135 | H25: 79,235
B26: 도시계획세 | C26: 2,011 | D26: 92,144 | E26: 0 | F26: 0 | G26: 2,011 | H26: 92,144
B27: 사업소세 | C27: 21 | D27: 11,534 | E27: 0 | F27: 0 | G27: 21 | H27: 11,534

Sheet 2-3-1
A1: 2-3-1. 불납결손액 사유별 현황
A2: (총 계) | L2: (단위 : 건, 천원)
A3: 구 분 | B3: 계 | D3: 무재산 | F3: 행방불명 | H3: 시효소멸 | J3: 공매시 무배당(청산부족) | L3: 기타
B4: 건수 | C4: 금액 | D4: 건수 | E4: 금액 | F4: 건수 | G4: 금액 | H4: 건수 | I4: 금액 | J4: 건수 | K4: 금액 | L4: 건수 | M4: 금액
A5: 합 계 | B5: =+B6+B16 -> 12,172 | C5: 1,504,110 | D5: 2,166 | E5: 502,144 | F5: =+F6+F16 -> 494 | G5: =+G6+G16 -> 73,837 | H5: 8,851 | I5: 123,531 | J5: 148 | K5: 403,053 | L5: 513 | M5: 401,545
A6: 도세 계 | B6: =SUM(B7:B15) -> 5,642 | C6: 324,140 | D6: 963 | E6: 81,673 | F6: =SUM(F7:F15) -> 208 | G6: =SUM(G7:G15) -> 7,553 | H6: 4,171 | I6: 26,805 | J6: 85 | K6: 40,158 | L6: 215 | M6: 167,951
A7: 취 득 세 | B7: =SUM(D7,F7,H7,J7,L7) -> 73 | C7: =SUM(E7,G7,I7,K7,M7) -> 231,082 | D7: =SUM('2-3-2'!D7,'2-3-3'!D7) -> 17 | E7: =SUM('2-3-2'!E7,'2-3-3'!E7) -> 50,053 | F7: =SUM('2-3-2'!F7,'2-3-3'!F7) -> 4 | G7: =SUM('2-3-2'!G7,'2-3-3'!G7) -> 1,648 | H7: =SUM('2-3-2'!H7,'2-3-3'!H7) -> 46 | I7: =SUM('2-3-2'!I7,'2-3-3'!I7) -> 8,153 | J7: =SUM('2-3-2'!J7,'2-3-3'!J7) -> 1 | K7: =SUM('2-3-2'!K7,'2-3-3'!K7) -> 14,259 | L7: =SUM('2-3-2'!L7,'2-3-3'!L7) -> 5 | M7: =SUM('2-3-2'!M7,'2-3-3'!M7) -> 156,969
A8: 등록면허세 | B8: =SUM(D8,F8,H8,J8,L8) -> 5 | C8: 98 | D8: =SUM('2-3-2'!D8,'2-3-3'!D8) -> 0 | E8: =SUM('2-3-2'!E8,'2-3-3'!E8) -> 0 | F8: =SUM('2-3-2'!F8,'2-3-3'!F8) -> 0 | G8: =SUM('2-3-2'!G8,'2-3-3'!G8) -> 0 | H8: =SUM('2-3-2'!H8,'2-3-3'!H8) -> 0 | I8: =SUM('2-3-2'!I8,'2-3-3'!I8) -> 0 | J8: =SUM('2-3-2'!J8,'2-3-3'!J8) -> 3 | K8: =SUM('2-3-2'!K8,'2-3-3'!K8) -> 77 | L8: =SUM('2-3-2'!L8,'2-3-3'!L8) -> 2 | M8: =SUM('2-3-2'!M8,'2-3-3'!M8) -> 21
A9: 지역자원시설세 | B9: 23 | C9: 20,681 | D9: =SUM('2-3-2'!D9,'2-3-3'!D9) -> 11 | E9: =SUM('2-3-2'!E9,'2-3-3'!E9) -> 2,799 | F9: =SUM('2-3-2'!F9,'2-3-3'!F9) -> 0 | G9: =SUM('2-3-2'!G9,'2-3-3'!G9) -> 0 | H9: =SUM('2-3-2'!H9,'2-3-3'!H9) -> 0 | I9: =SUM('2-3-2'!I9,'2-3-3'!I9) -> 0 | J9: =SUM('2-3-2'!J9,'2-3-3'!J9) -> 11 | K9: =SUM('2-3-2'!K9,'2-3-3'!K9) -> 17,695 | L9: =SUM('2-3-2'!L9,'2-3-3'!L9) -> 1 | M9: =SUM('2-3-2'!M9,'2-3-3'!M9) -> 187
A10: 지방소비세 | B10: 0 | C10: 0 | D10: =SUM('2-3-2'!D10,'2-3-3'!D10) -> 0 | E10: =SUM('2-3-2'!E10,'2-3-3'!E10) -> 0 | F10: =SUM('2-3-2'!F10,'2-3-3'!F10) -> 0 | G10: =SUM('2-3-2'!G10,'2-3-3'!G10) -> 0 | H10: =SUM('2-3-2'!H10,'2-3-3'!H10) -> 0 | I10: =SUM('2-3-2'!I10,'2-3-3'!I10) -> 0 | J10: =SUM('2-3-2'!J10,'2-3-3'!J10) -> 0 | K10: =SUM('2-3-2'!K10,'2-3-3'!K10) -> 0 | L10: =SUM('2-3-2'!L10,'2-3-3'!L10) -> 0 | M10: =SUM('2-3-2'!M10,'2-3-3'!M10) -> 0
A11: 등록세 | B11: 9 | C11: 2,244 | D11: =SUM('2-3-2'!D11,'2-3-3'!D11) -> 2 | E11: =SUM('2-3-2'!E11,'2-3-3'!E11) -> 1,052 | F11: =SUM('2-3-2'!F11,'2-3-3'!F11) -> 1 | G11: =SUM('2-3-2'!G11,'2-3-3'!G11) -> 989 | H11: =SUM('2-3-2'!H11,'2-3-3'!H11) -> 6 | I11: =SUM('2-3-2'!I11,'2-3-3'!I11) -> 203 | J11: =SUM('2-3-2'!J11,'2-3-3'!J11) -> 0 | K11: =SUM('2-3-2'!K11,'2-3-3'!K11) -> 0 | L11: =SUM('2-3-2'!L11,'2-3-3'!L11) -> 0 | M11: =SUM('2-3-2'!M11,'2-3-3'!M11) -> 0
A12: 면허세 | B12: 273 | C12: 3,377 | D12: =SUM('2-3-2'!D12,'2-3-3'!D12) -> 47 | E12: =SUM('2-3-2'!E12,'2-3-3'!E12) -> 546 | F12: =SUM('2-3-2'!F12,'2-3-3'!F12) -> 5 | G12: =SUM('2-3-2'!G12,'2-3-3'!G12) -> 105 | H12: =SUM('2-3-2'!H12,'2-3-3'!H12) -> 212 | I12: =SUM('2-3-2'!I12,'2-3-3'!I12) -> 2,637 | J12: =SUM('2-3-2'!J12,'2-3-3'!J12) -> 7 | K12: =SUM('2-3-2'!K12,'2-3-3'!K12) -> 60 | L12: =SUM('2-3-2'!L12,'2-3-3'!L12) -> 2 | M12: =SUM('2-3-2'!M12,'2-3-3'!M12) -> 29
A13: 공동시설세 | B13: 135 | C13: 9,852 | D13: =SUM('2-3-2'!D13,'2-3-3'!D13) -> 44 | E13: =SUM('2-3-2'!E13,'2-3-3'!E13) -> 4,906 | F13: =SUM('2-3-2'!F13,'2-3-3'!F13) -> 17 | G13: =SUM('2-3-2'!G13,'2-3-3'!G13) -> 86 | H13: =SUM('2-3-2'!H13,'2-3-3'!H13) -> 68 | I13: =SUM('2-3-2'!I13,'2-3-3'!I13) -> 636 | J13: =SUM('2-3-2'!J13,'2-3-3'!J13) -> 4 | K13: =SUM('2-3-2'!K13,'2-3-3'!K13) -> 1,744 | L13: =SUM('2-3-2'!L13,'2-3-3'!L13) -> 2 | M13: =SUM('2-3-2'!M13,'2-3-3'!M13) -> 2,480
A14: 지역개발세 | B14: 19 | C14: 224 | D14: =SUM('2-3-2'!D14,'2-3-3'!D14) -> 2 | E14: =SUM('2-3-2'!E14,'2-3-3'!E14) -> 9 | F14: =SUM('2-3-2'!F14,'2-3-3'!F14) -> 0 | G14: =SUM('2-3-2'!G14,'2-3-3'!G14) -> 0 | H14: =SUM('2-3-2'!H14,'2-3-3'!H14) -> 2 | I14: =SUM('2-3-2'!I14,'2-3-3'!I14) -> 28 | J14: =SUM('2-3-2'!J14,'2-3-3'!J14) -> 15 | K14: =SUM('2-3-2'!K14,'2-3-3'!K14) -> 187 | L14: =SUM('2-3-2'!L14,'2-3-3'!L14) -> 0 | M14: =SUM('2-3-2'!M14,'2-3-3'!M14) -> 0
A15: 지방교육세 | B15: 5,105 | C15: 56,582 | D15: =SUM('2-3-2'!D15,'2-3-3'!D15) -> 840 | E15: =SUM('2-3-2'!E15,'2-3-3'!E15) -> 22,308 | F15: =SUM('2-3-2'!F15,'2-3-3'!F15) -> 181 | G15: =SUM('2-3-2'!G15,'2-3-3'!G15) -> 4,725 | H15: =SUM('2-3-2'!H15,'2-3-3'!H15) -> 3,837 | I15: =SUM('2-3-2'!I15,'2-3-3'!I15) -> 15,148 | J15: =SUM('2-3-2'!J15,'2-3-3'!J15) -> 44 | K15: =SUM('2-3-2'!K15,'2-3-3'!K15) -> 6,136 | L15: =SUM('2-3-2'!L15,'2-3-3'!L15) -> 203 | M15: =SUM('2-3-2'!M15,'2-3-3'!M15) -> 8,265
A16: 시군세 계 | B16: =SUM(B17:B27) -> 6,530 | C16: =SUM(C17:C27) -> 1,179,970 | D16: =SUM(D17:D27) -> 1,203 | E16: 420,471 | F16: =SUM(F17:F27) -> 286 | G16: =SUM(G17:G27) -> 66,284 | H16: 4,680 | I16: 96,726 | J16: 63 | K16: 362,895 | L16: 298 | M16: 233,594
A17: 주 민 세 | B17: =SUM(D17,F17,H17,J17,L17) -> 2,933 | C17: =SUM(E17,G17,I17,K17,M17) -> 106,538 | D17: =SUM('2-3-2'!D17,'2-3-3'!D17) -> 268 | E17: =SUM('2-3-2'!E17,'2-3-3'!E17) -> 63,785 | F17: =SUM('2-3-2'!F17,'2-3-3'!F17) -> 44 | G17: =SUM('2-3-2'!G17,'2-3-3'!G17) -> 2,617 | H17: =SUM('2-3-2'!H17,'2-3-3'!H17) -> 2,554 | I17: =SUM('2-3-2'!I17,'2-3-3'!I17) -> 28,870 | J17: =SUM('2-3-2'!J17,'2-3-3'!J17) -> 12 | K17: =SUM('2-3-2'!K17,'2-3-3'!K17) -> 617 | L17: =SUM('2-3-2'!L17,'2-3-3'!L17) -> 55 | M17: =SUM('2-3-2'!M17,'2-3-3'!M17) -> 10,649
A18: 재 산 세 | B18: =SUM(D18,F18,H18,J18,L18) -> 1,004 | C18: 119,085 | D18: =SUM('2-3-2'!D18,'2-3-3'!D18) -> 135 | E18: =SUM('2-3-2'!E18,'2-3-3'!E18) -> 35,614 | F18: =SUM('2-3-2'!F18,'2-3-3'!F18) -> 20 | G18: =SUM('2-3-2'!G18,'2-3-3'!G18) -> 397 | H18: =SUM('2-3-2'!H18,'2-3-3'!H18) -> 780 | I18: =SUM('2-3-2'!I18,'2-3-3'!I18) -> 8,614 | J18: =SUM('2-3-2'!J18,'2-3-3'!J18) -> 30 | K18: =SUM('2-3-2'!K18,'2-3-3'!K18) -> 45,029 | L18: =SUM('2-3-2'!L18,'2-3-3'!L18) -> 39 | M18: =SUM('2-3-2'!M18,'2-3-3'!M18) -> 29,431
A19: 자동차세 | B19: 2,026 | C19: 159,055 | D19: =SUM('2-3-2'!D19,'2-3-3'!D19) -> 663 | E19: =SUM('2-3-2'!E19,'2-3-3'!E19) -> 68,357 | F19: =SUM('2-3-2'!F19,'2-3-3'!F19) -> 195 | G19: =SUM('2-3-2'!G19,'2-3-3'!G19) -> 22,643 | H19: =SUM('2-3-2'!H19,'2-3-3'!H19) -> 1,036 | I19: =SUM('2-3-2'!I19,'2-3-3'!I19) -> 55,204 | J19: =SUM('2-3-2'!J19,'2-3-3'!J19) -> 7 | K19: =SUM('2-3-2'!K19,'2-3-3'!K19) -> 663 | L19: =SUM('2-3-2'!L19,'2-3-3'!L19) -> 125 | M19: =SUM('2-3-2'!M19,'2-3-3'!M19) -> 12,188
A20: 담배소비세 | B20: 0 | C20: 0 | D20: =SUM('2-3-2'!D20,'2-3-3'!D20) -> 0 | E20: =SUM('2-3-2'!E20,'2-3-3'!E20) -> 0 | F20: =SUM('2-3-2'!F20,'2-3-3'!F20) -> 0 | G20: =SUM('2-3-2'!G20,'2-3-3'!G20) -> 0 | H20: =SUM('2-3-2'!H20,'2-3-3'!H20) -> 0 | I20: =SUM('2-3-2'!I20,'2-3-3'!I20) -> 0 | J20: =SUM('2-3-2'!J20,'2-3-3'!J20) -> 0 | K20: =SUM('2-3-2'!K20,'2-3-3'!K20) -> 0 | L20: =SUM('2-3-2'!L20,'2-3-3'!L20) -> 0 | M20: =SUM('2-3-2'!M20,'2-3-3'!M20) -> 0
A21: 지방소득세 | B21: 89 | C21: 748,621 | D21: =SUM('2-3-2'!D21,'2-3-3'!D21) -> 62 | E21: =SUM('2-3-2'!E21,'2-3-3'!E21) -> 239,177 | F21: =SUM('2-3-2'!F21,'2-3-3'!F21) -> 9 | G21: =SUM('2-3-2'!G21,'2-3-3'!G21) -> 40,310 | H21: =SUM('2-3-2'!H21,'2-3-3'!H21) -> 0 | I21: =SUM('2-3-2'!I21,'2-3-3'!I21) -> 0 | J21: =SUM('2-3-2'!J21,'2-3-3'!J21) -> 8 | K21: =SUM('2-3-2'!K21,'2-3-3'!K21) -> 312,877 | L21: =SUM('2-3-2'!L21,'2-3-3'!L21) -> 10 | M21: =SUM('2-3-2'!M21,'2-3-3'!M21) -> 156,257
A22: 주행세 | B22: 0 | C22: 0 | D22: =SUM('2-3-2'!D22,'2-3-3'!D22) -> 0 | E22: =SUM('2-3-2'!E22,'2-3-3'!E22) -> 0 | F22: =SUM('2-3-2'!F22,'2-3-3'!F22) -> 0 | G22: =SUM('2-3-2'!G22,'2-3-3'!G22) -> 0 | H22: =SUM('2-3-2'!H22,'2-3-3'!H22) -> 0 | I22: =SUM('2-3-2'!I22,'2-3-3'!I22) -> 0 | J22: =SUM('2-3-2'!J22,'2-3-3'!J22) -> 0 | K22: =SUM('2-3-2'!K22,'2-3-3'!K22) -> 0 | L22: =SUM('2-3-2'!L22,'2-3-3'!L22) -> 0 | M22: =SUM('2-3-2'!M22,'2-3-3'!M22) -> 0
A23: 농업소득세 | B23: 0 | C23: 0 | D23: =SUM('2-3-2'!D23,'2-3-3'!D23) -> 0 | E23: =SUM('2-3-2'!E23,'2-3-3'!E23) -> 0 | F23: =SUM('2-3-2'!F23,'2-3-3'!F23) -> 0 | G23: =SUM('2-3-2'!G23,'2-3-3'!G23) -> 0 | H23: =SUM('2-3-2'!H23,'2-3-3'!H23) -> 0 | I23: =SUM('2-3-2'!I23,'2-3-3'!I23) -> 0 | J23: =SUM('2-3-2'!J23,'2-3-3'!J23) -> 0 | K23: =SUM('2-3-2'!K23,'2-3-3'!K23) -> 0 | L23: =SUM('2-3-2'!L23,'2-3-3'!L23) -> 0 | M23: =SUM('2-3-2'!M23,'2-3-3'!M23) -> 0
A24: 도축세 | B24: 0 | C24: 0 | D24: =SUM('2-3-2'!D24,'2-3-3'!D24) -> 0 | E24: =SUM('2-3-2'!E24,'2-3-3'!E24) -> 0 | F24: =SUM('2-3-2'!F24,'2-3-3'!F24) -> 0 | G24: =SUM('2-3-2'!G24,'2-3-3'!G24) -> 0 | H24: =SUM('2-3-2'!H24,'2-3-3'!H24) -> 0 | I24: =SUM('2-3-2'!I24,'2-3-3'!I24) -> 0 | J24: =SUM('2-3-2'!J24,'2-3-3'!J24) -> 0 | K24: =SUM('2-3-2'!K24,'2-3-3'!K24) -> 0 | L24: =SUM('2-3-2'!L24,'2-3-3'!L24) -> 0 | M24: =SUM('2-3-2'!M24,'2-3-3'!M24) -> 0
A25: 종합토지세 | B25: 120 | C25: 13,048 | D25: =SUM('2-3-2'!D25,'2-3-3'!D25) -> 18 | E25: =SUM('2-3-2'!E25,'2-3-3'!E25) -> 969 | F25: =SUM('2-3-2'!F25,'2-3-3'!F25) -> 0 | G25: =SUM('2-3-2'!G25,'2-3-3'!G25) -> 0 | H25: =SUM('2-3-2'!H25,'2-3-3'!H25) -> 68 | I25: =SUM('2-3-2'!I25,'2-3-3'!I25) -> 839 | J25: =SUM('2-3-2'!J25,'2-3-3'!J25) -> 0 | K25: =SUM('2-3-2'!K25,'2-3-3'!K25) -> 0 | L25: =SUM('2-3-2'!L25,'2-3-3'!L25) -> 34 | M25: =SUM('2-3-2'!M25,'2-3-3'!M25) -> 11,240
A26: 도시계획세 | B26: 353 | C26: 30,639 | D26: =SUM('2-3-2'!D26,'2-3-3'!D26) -> 57 | E26: =SUM('2-3-2'!E26,'2-3-3'!E26) -> 12,569 | F26: =SUM('2-3-2'!F26,'2-3-3'!F26) -> 18 | G26: =SUM('2-3-2'!G26,'2-3-3'!G26) -> 317 | H26: =SUM('2-3-2'!H26,'2-3-3'!H26) -> 240 | I26: =SUM('2-3-2'!I26,'2-3-3'!I26) -> 2,923 | J26: =SUM('2-3-2'!J26,'2-3-3'!J26) -> 3 | K26: =SUM('2-3-2'!K26,'2-3-3'!K26) -> 1,001 | L26: =SUM('2-3-2'!L26,'2-3-3'!L26) -> 35 | M26: =SUM('2-3-2'!M26,'2-3-3'!M26) -> 13,829
A27: 사업소세 | B27: 5 | C27: 2,984 | D27: =SUM('2-3-2'!D27,'2-3-3'!D27) -> 0 | E27: =SUM('2-3-2'!E27,'2-3-3'!E27) -> 0 | F27: =SUM('2-3-2'!F27,'2-3-3'!F27) -> 0 | G27: =SUM('2-3-2'!G27,'2-3-3'!G27) -> 0 | H27: =SUM('2-3-2'!H27,'2-3-3'!H27) -> 2 | I27: =SUM('2-3-2'!I27,'2-3-3'!I27) -> 276 | J27: =SUM('2-3-2'!J27,'2-3-3'!J27) -> 3 | K27: =SUM('2-3-2'!K27,'2-3-3'!K27) -> 2,708 | L27: =SUM('2-3-2'!L27,'2-3-3'!L27) -> 0 | M27: =SUM('2-3-2'!M27,'2-3-3'!M27) -> 0

Sheet 2-3-2
A1: 2-3-2. 불납결손액 사유별 현황
A2: (현년도) | M2: (단위 : 건, 천원)
A3: 구 분 | B3: 계 | D3: 무재산 | F3: 행방불명 | H3: 시효소멸 | J3: 공매시 무배당(청산부족) | L3: 기타
B4: 건수 | C4: 금액 | D4: 건수 | E4: 금액 | F4: 건수 | G4: 금액 | H4: 건수 | I4: 금액 | J4: 건수 | K4: 금액 | L4: 건수 | M4: 금액
A5: 합 계 | B5: =+B6+B16 -> 21 | C5: 878 | D5: 17 | E5: 424 | F5: =+F6+F16 -> 0 | G5: =+G6+G16 -> 0 | H5: 0 | I5: 0 | J5: 3 | K5: 77 | L5: 1 | M5: 377
A6: 도세 계 | B6: =SUM(B7:B15) -> 11 | C6: 118 | D6: 8 | E6: 41 | F6: =SUM(F7:F15) -> 0 | G6: =SUM(G7:G15) -> 0 | H6: 0 | I6: 0 | J6: 3 | K6: 77 | L6: 0 | M6: 0
A7: 취 득 세 | B7: =SUM(D7,F7,H7,J7,L7) -> 0 | C7: =SUM(E7,G7,I7,K7,M7) -> 0
A8: 등록면허세 | B8: =SUM(D8,F8,H8,J8,L8) -> 3 | C8: 77 | J8: 3 | K8: 77
A9: 지역자원시설세 | B9: 0 | C9: 0
A10: 지방소비세 | B10: 0 | C10: 0
A11: 등록세 | B11: 0 | C11: 0
A12: 면허세 | B12: 0 | C12: 0
A13: 공동시설세 | B13: 0 | C13: 0
A14: 지역개발세 | B14: 0 | C14: 0
A15: 지방교육세 | B15: 8 | C15: 41 | D15: 8 | E15: 41
A16: 시군세 계 | B16: =SUM(B17:B27) -> 10 | C16: 760 | D16: 9 | E16: 383 | F16: =SUM(F17:F27) -> 0 | G16: =SUM(G17:G27) -> 0 | H16: 0 | I16: 0 | J16: 0 | K16: 0 | L16: 1 | M16: 377
A17: 주 민 세 | B17: =SUM(D17,F17,H17,J17,L17) -> 0 | C17: =SUM(E17,G17,I17,K17,M17) -> 0
A18: 재 산 세 | B18: =SUM(D18,F18,H18,J18,L18) -> 3 | C18: 35 | D18: 3 | E18: 35
A19: 자동차세 | B19: 5 | C19: 123 | D19: 5 | E19: 123
A20: 담배소비세 | B20: 0 | C20: 0
A21: 지방소득세 | B21: 2 | C21: 602 | D21: 1 | E21: 225 | L21: 1 | M21: 377
A22: 주행세 | B22: 0 | C22: 0
A23: 농업소득세 | B23: 0 | C23: 0
A24: 도축세 | B24: 0 | C24: 0
A25: 종합토지세 | B25: 0 | C25: 0
A26: 도시계획세 | B26: 0 | C26: 0
A27: 사업소세 | B27: 0 | C27: 0

Sheet 2-3-3
A1: 2-3-3. 불납결손액 사유별 현황
A2: (과년도) | M2: (단위 : 건, 천원)
A3: 구 분 | B3: 계 | D3: 무재산 | F3: 행방불명 | H3: 시효소멸 | J3: 공매시 무배당(청산부족) | L3: 기타
B4: 건수 | C4: 금액 | D4: 건수 | E4: 금액 | F4: 건수 | G4: 금액 | H4: 건수 | I4: 금액 | J4: 건수 | K4: 금액 | L4: 건수 | M4: 금액
A5: 합 계 | B5: =+B6+B16 -> 12,151 | C5: 1,503,232 | D5: 2,149 | E5: 501,720 | F5: =+F6+F16 -> 494 | G5: =+G6+G16 -> 73,837 | H5: 8,851 | I5: 123,531 | J5: 145 | K5: 402,976 | L5: 512 | M5: 401,168
A6: 도세 계 | B6: =SUM(B7:B15) -> 5,631 | C6: 324,022 | D6: 955 | E6: 81,632 | F6: =SUM(F7:F15) -> 208 | G6: =SUM(G7:G15) -> 7,553 | H6: 4,171 | I6: 26,805 | J6: 82 | K6: 40,081 | L6: 215 | M6: 167,951
A7: 취 득 세 | B7: =SUM(D7,F7,H7,J7,L7) -> 73 | C7: =SUM(E7,G7,I7,K7,M7) -> 231,082 | D7: 17 | E7: 50,053 | F7: 4 | G7: 1,648 | H7: 46 | I7: 8,153 | J7: 1 | K7: 14,259 | L7: 5 | M7: 156,969
A8: 등록면허세 | B8: =SUM(D8,F8,H8,J8,L8) -> 2 | C8: 21 | L8: 2 | M8: 21
A9: 지역자원시설세 | B9: 23 | C9: 20,681 | D9: 11 | E9: 2,799 | J9: 11 | K9: 17,695 | L9: 1 | M9: 187
A10: 지방소비세 | B10: 0 | C10: 0
A11: 등록세 | B11: 9 | C11: 2,244 | D11: 2 | E11: 1,052 | F11: 1 | G11: 989 | H11: 6 | I11: 203
A12: 면허세 | B12: 273 | C12: 3,377 | D12: 47 | E12: 546 | F12: 5 | G12: 105 | H12: 212 | I12: 2,637 | J12: 7 | K12: 60 | L12: 2 | M12: 29
A13: 공동시설세 | B13: 135 | C13: 9,852 | D13: 44 | E13: 4,906 | F13: 17 | G13: 86 | H13: 68 | I13: 636 | J13: 4 | K13: 1,744 | L13: 2 | M13: 2,480
A14: 지역개발세 | B14: 19 | C14: 224 | D14: 2 | E14: 9 | H14: 2 | I14: 28 | J14: 15 | K14: 187
A15: 지방교육세 | B15: 5,097 | C15: 56,541 | D15: 832 | E15: 22,267 | F15: 181 | G15: 4,725 | H15: 3,837 | I15: 15,148 | J15: 44 | K15: 6,136 | L15: 203 | M15: 8,265
A16: 시군세 계 | B16: =SUM(B17:B27) -> 6,520 | C16: 1,179,210 | D16: 1,194 | E16: 420,088 | F16: =SUM(F17:F27) -> 286 | G16: =SUM(G17:G27) -> 66,284 | H16: 4,680 | I16: 96,726 | J16: 63 | K16: 362,895 | L16: 297 | M16: 233,217
A17: 주 민 세 | B17: =SUM(D17,F17,H17,J17,L17) -> 2,933 | C17: =SUM(E17,G17,I17,K17,M17) -> 106,538 | D17: 268 | E17: 63,785 | F17: 44 | G17: 2,617 | H17: 2,554 | I17: 28,870 | J17: 12 | K17: 617 | L17: 55 | M17: 10,649
A18: 재 산 세 | B18: =SUM(D18,F18,H18,J18,L18) -> 1,001 | C18: 119,050 | D18: 132 | E18: 35,579 | F18: 20 | G18: 397 | H18: 780 | I18: 8,614 | J18: 30 | K18: 45,029 | L18: 39 | M18: 29,431
A19: 자동차세 | B19: 2,021 | C19: 158,932 | D19: 658 | E19: 68,234 | F19: 195 | G19: 22,643 | H19: 1,036 | I19: 55,204 | J19: 7 | K19: 663 | L19: 125 | M19: 12,188
A20: 담배소비세 | B20: 0 | C20: 0
A21: 지방소득세 | B21: 87 | C21: 748,019 | D21: 61 | E21: 238,952 | F21: 9 | G21: 40,310 | J21: 8 | K21: 312,877 | L21: 9 | M21: 155,880
A22: 주행세 | B22: 0 | C22: 0
A23: 농업소득세 | B23: 0 | C23: 0
A24: 도축세 | B24: 0 | C24: 0
A25: 종합토지세 | B25: 120 | C25: 13,048 | D25: 18 | E25: 969 | H25: 68 | I25: 839 | J25: 0 | K25: 0 | L25: 34 | M25: 11,240
A26: 도시계획세 | B26: 353 | C26: 30,639 | D26: 57 | E26: 12,569 | F26: 18 | G26: 317 | H26: 240 | I26: 2,923 | J26: 3 | K26: 1,001 | L26: 35 | M26: 13,829
A27: 사업소세 | B27: 5 | C27: 2,984 | H27: 2 | I27: 276 | J27: 3 | K27: 2,708

Sheet 3-3-1
A1: 3-3-1. 과오납 환부액 사유별 현황
A2: (총 계) | O2: (단위 : 건, 천원)
A3: 구 분 | B3: 계 | D3: 이중납부 | F3: 과세면제 | H3: 계약해제 | J3: 행정소송 패소 | L3: 착오부과 | N3: 기 타(국세조정 등)
B4: 건수 | C4: 금액 | D4: 건수 | E4: 금액 | F4: 건수 | G4: 금액 | H4: 건수 | I4: 금액 | J4: 건수 | K4: 금액 | L4: 건수 | M4: 금액 | N4: 건수 | O4: 금액
A5: 합 계 | B5: =+B6+B16 -> 18,069 | C5: =+C6+C16 -> 4,087,881 | D5: 197 | E5: 50,929 | F5: =+F6+F16 -> 5,436 | G5: =+G6+G16 -> 553,888 | H5: 464 | I5: 132,610 | J5: 72 | K5: 70,006 | L5: 13 | M5: 3,105 | N5: 11,887 | O5: 3,277,343
A6: 도세 계 | B6: =SUM(B7:B15) -> 8,421 | C6: 580,749 | D6: 118 | E6: 23,431 | F6: =SUM(F7:F15) -> 4,851 | G6: =SUM(G7:G15) -> 323,737 | H6: 363 | I6: 101,723 | J6: 72 | K6: 70,006 | L6: 12 | M6: 3,088 | N6: 3,005 | O6: 58,764
A7: 취 득 세 | B7: =SUM(D7,F7,H7,J7,L7,N7) -> 246 | C7: 365,500 | D7: =SUM('3-3-2'!D7,'3-3-3'!D7) -> 14 | E7: =SUM('3-3-2'!E7,'3-3-3'!E7) -> 18,301 | F7: =SUM('3-3-2'!F7,'3-3-3'!F7) -> 143 | G7: =SUM('3-3-2'!G7,'3-3-3'!G7) -> 200,079 | H7: =SUM('3-3-2'!H7,'3-3-3'!H7) -> 45 | I7: =SUM('3-3-2'!I7,'3-3-3'!I7) -> 77,566 | J7: =SUM('3-3-2'!J7,'3-3-3'!J7) -> 36 | K7: =SUM('3-3-2'!K7,'3-3-3'!K7) -> 63,642 | L7: =SUM('3-3-2'!L7,'3-3-3'!L7) -> 6 | M7: =SUM('3-3-2'!M7,'3-3-3'!M7) -> 2,853 | N7: =SUM('3-3-2'!N7,'3-3-3'!N7) -> 2 | O7: =SUM('3-3-2'!O7,'3-3-3'!O7) -> 3,059
A8: 등록면허세 | B8: 4,340 | C8: 95,102 | D8: =SUM('3-3-2'!D8,'3-3-3'!D8) -> 32 | E8: =SUM('3-3-2'!E8,'3-3-3'!E8) -> 2,429 | F8: =SUM('3-3-2'!F8,'3-3-3'!F8) -> 4,214 | G8: =SUM('3-3-2'!G8,'3-3-3'!G8) -> 82,501 | H8: =SUM('3-3-2'!H8,'3-3-3'!H8) -> 91 | I8: =SUM('3-3-2'!I8,'3-3-3'!I8) -> 10,139 | J8: =SUM('3-3-2'!J8,'3-3-3'!J8) -> 0 | K8: =SUM('3-3-2'!K8,'3-3-3'!K8) -> 0 | L8: =SUM('3-3-2'!L8,'3-3-3'!L8) -> 2 | M8: =SUM('3-3-2'!M8,'3-3-3'!M8) -> 15 | N8: =SUM('3-3-2'!N8,'3-3-3'!N8) -> 1 | O8: =SUM('3-3-2'!O8,'3-3-3'!O8) -> 18
A9: 지역자원시설세 | B9: 988 | C9: 25,024 | D9: =SUM('3-3-2'!D9,'3-3-3'!D9) -> 1 | E9: =SUM('3-3-2'!E9,'3-3-3'!E9) -> 14 | F9: =SUM('3-3-2'!F9,'3-3-3'!F9) -> 8 | G9: =SUM('3-3-2'!G9,'3-3-3'!G9) -> 40 | H9: =SUM('3-3-2'!H9,'3-3-3'!H9) -> 8 | I9: =SUM('3-3-2'!I9,'3-3-3'!I9) -> 179 | J9: =SUM('3-3-2'!J9,'3-3-3'!J9) -> 0 | K9: =SUM('3-3-2'!K9,'3-3-3'!K9) -> 0 | L9: =SUM('3-3-2'!L9,'3-3-3'!L9) -> 0 | M9: =SUM('3-3-2'!M9,'3-3-3'!M9) -> 0 | N9: =SUM('3-3-2'!N9,'3-3-3'!N9) -> 971 | O9: =SUM('3-3-2'!O9,'3-3-3'!O9) -> 24,791
A10: 지방소비세 | B10: 0 | C10: 0 | D10: =SUM('3-3-2'!D10,'3-3-3'!D10) -> 0 | E10: =SUM('3-3-2'!E10,'3-3-3'!E10) -> 0 | F10: =SUM('3-3-2'!F10,'3-3-3'!F10) -> 0 | G10: =SUM('3-3-2'!G10,'3-3-3'!G10) -> 0 | H10: =SUM('3-3-2'!H10,'3-3-3'!H10) -> 0 | I10: =SUM('3-3-2'!I10,'3-3-3'!I10) -> 0 | J10: =SUM('3-3-2'!J10,'3-3-3'!J10) -> 0 | K10: =SUM('3-3-2'!K10,'3-3-3'!K10) -> 0 | L10: =SUM('3-3-2'!L10,'3-3-3'!L10) -> 0 | M10: =SUM('3-3-2'!M10,'3-3-3'!M10) -> 0 | N10: =SUM('3-3-2'!N10,'3-3-3'!N10) -> 0 | O10: =SUM('3-3-2'!O10,'3-3-3'!O10) -> 0
A11: 등록세 | B11: 12 | C11: 1,199 | D11: =SUM('3-3-2'!D11,'3-3-3'!D11) -> 0 | E11: =SUM('3-3-2'!E11,'3-3-3'!E11) -> 0 | F11: =SUM('3-3-2'!F11,'3-3-3'!F11) -> 4 | G11: =SUM('3-3-2'!G11,'3-3-3'!G11) -> 829 | H11: =SUM('3-3-2'!H11,'3-3-3'!H11) -> 8 | I11: =SUM('3-3-2'!I11,'3-3-3'!I11) -> 370 | J11: =SUM('3-3-2'!J11,'3-3-3'!J11) -> 0 | K11: =SUM('3-3-2'!K11,'3-3-3'!K11) -> 0 | L11: =SUM('3-3-2'!L11,'3-3-3'!L11) -> 0 | M11: =SUM('3-3-2'!M11,'3-3-3'!M11) -> 0 | N11: =SUM('3-3-2'!N11,'3-3-3'!N11) -> 0 | O11: =SUM('3-3-2'!O11,'3-3-3'!O11) -> 0
A12: 면허세 | B12: 0 | C12: 0 | D12: =SUM('3-3-2'!D12,'3-3-3'!D12) -> 0 | E12: =SUM('3-3-2'!E12,'3-3-3'!E12) -> 0 | F12: =SUM('3-3-2'!F12,'3-3-3'!F12) -> 0 | G12: =SUM('3-3-2'!G12,'3-3-3'!G12) -> 0 | H12: =SUM('3-3-2'!H12,'3-3-3'!H12) -> 0 | I12: =SUM('3-3-2'!I12,'3-3-3'!I12) -> 0 | J12: =SUM('3-3-2'!J12,'3-3-3'!J12) -> 0 | K12: =SUM('3-3-2'!K12,'3-3-3'!K12) -> 0 | L12: =SUM('3-3-2'!L12,'3-3-3'!L12) -> 0 | M12: =SUM('3-3-2'!M12,'3-3-3'!M12) -> 0 | N12: =SUM('3-3-2'!N12,'3-3-3'!N12) -> 0 | O12: =SUM('3-3-2'!O12,'3-3-3'!O12) -> 0
A13: 공동시설세 | B13: 0 | C13: 0 | D13: =SUM('3-3-2'!D13,'3-3-3'!D13) -> 0 | E13: =SUM('3-3-2'!E13,'3-3-3'!E13) -> 0 | F13: =SUM('3-3-2'!F13,'3-3-3'!F13) -> 0 | G13: =SUM('3-3-2'!G13,'3-3-3'!G13) -> 0 | H13: =SUM('3-3-2'!H13,'3-3-3'!H13) -> 0 | I13: =SUM('3-3-2'!I13,'3-3-3'!I13) -> 0 | J13: =SUM('3-3-2'!J13,'3-3-3'!J13) -> 0 | K13: =SUM('3-3-2'!K13,'3-3-3'!K13) -> 0 | L13: =SUM('3-3-2'!L13,'3-3-3'!L13) -> 0 | M13: =SUM('3-3-2'!M13,'3-3-3'!M13) -> 0 | N13: =SUM('3-3-2'!N13,'3-3-3'!N13) -> 0 | O13: =SUM('3-3-2'!O13,'3-3-3'!O13) -> 0
A14: 지역개발세 | B14: 0 | C14: 0 | D14: =SUM('3-3-2'!D14,'3-3-3'!D14) -> 0 | E14: =SUM('3-3-2'!E14,'3-3-3'!E14) -> 0 | F14: =SUM('3-3-2'!F14,'3-3-3'!F14) -> 0 | G14: =SUM('3-3-2'!G14,'3-3-3'!G14) -> 0 | H14: =SUM('3-3-2'!H14,'3-3-3'!H14) -> 0 | I14: =SUM('3-3-2'!I14,'3-3-3'!I14) -> 0 | J14: =SUM('3-3-2'!J14,'3-3-3'!J14) -> 0 | K14: =SUM('3-3-2'!K14,'3-3-3'!K14) -> 0 | L14: =SUM('3-3-2'!L14,'3-3-3'!L14) -> 0 | M14: =SUM('3-3-2'!M14,'3-3-3'!M14) -> 0 | N14: =SUM('3-3-2'!N14,'3-3-3'!N14) -> 0 | O14: =SUM('3-3-2'!O14,'3-3-3'!O14) -> 0
A15: 지방교육세 | B15: 2,835 | C15: 93,924 | D15: =SUM('3-3-2'!D15,'3-3-3'!D15) -> 71 | E15: =SUM('3-3-2'!E15,'3-3-3'!E15) -> 2,687 | F15: =SUM('3-3-2'!F15,'3-3-3'!F15) -> 482 | G15: =SUM('3-3-2'!G15,'3-3-3'!G15) -> 40,288 | H15: =SUM('3-3-2'!H15,'3-3-3'!H15) -> 211 | I15: =SUM('3-3-2'!I15,'3-3-3'!I15) -> 13,469 | J15: =SUM('3-3-2'!J15,'3-3-3'!J15) -> 36 | K15: =SUM('3-3-2'!K15,'3-3-3'!K15) -> 6,364 | L15: =SUM('3-3-2'!L15,'3-3-3'!L15) -> 4 | M15: =SUM('3-3-2'!M15,'3-3-3'!M15) -> 220 | N15: =SUM('3-3-2'!N15,'3-3-3'!N15) -> 2,031 | O15: =SUM('3-3-2'!O15,'3-3-3'!O15) -> 30,896
A16: 시군세 계 | B16: =SUM(B17:B27) -> 9,648 | C16: 3,507,132 | D16: 79 | E16: 27,498 | F16: =SUM(F17:F27) -> 585 | G16: =SUM(G17:G27) -> 230,151 | H16: 101 | I16: 30,887 | J16: 0 | K16: 0 | L16: 1 | M16: 17 | N16: 8,882 | O16: 3,218,579
A17: 주 민 세 | B17: =SUM(D17,F17,H17,J17,L17,N17) -> 59 | C17: =SUM(E17,G17,I17,K17,M17,O17) -> 112,164 | D17: =SUM('3-3-2'!D17,'3-3-3'!D17) -> 9 | E17: =SUM('3-3-2'!E17,'3-3-3'!E17) -> 99 | F17: =SUM('3-3-2'!F17,'3-3-3'!F17) -> 12 | G17: =SUM('3-3-2'!G17,'3-3-3'!G17) -> 4,830 | H17: =SUM('3-3-2'!H17,'3-3-3'!H17) -> 15 | I17: =SUM('3-3-2'!I17,'3-3-3'!I17) -> 1,126 | J17: =SUM('3-3-2'!J17,'3-3-3'!J17) -> 0 | K17: =SUM('3-3-2'!K17,'3-3-3'!K17) -> 0 | L17: =SUM('3-3-2'!L17,'3-3-3'!L17) -> 0 | M17: =SUM('3-3-2'!M17,'3-3-3'!M17) -> 0 | N17: =SUM('3-3-2'!N17,'3-3-3'!N17) -> 23 | O17: =SUM('3-3-2'!O17,'3-3-3'!O17) -> 106,109
A18: 재 산 세 | B18: =SUM(D18,F18,H18,J18,L18,N18) -> 125 | C18: 118,850 | D18: =SUM('3-3-2'!D18,'3-3-3'!D18) -> 14 | E18: =SUM('3-3-2'!E18,'3-3-3'!E18) -> 197 | F18: =SUM('3-3-2'!F18,'3-3-3'!F18) -> 35 | G18: =SUM('3-3-2'!G18,'3-3-3'!G18) -> 84,593 | H18: =SUM('3-3-2'!H18,'3-3-3'!H18) -> 75 | I18: =SUM('3-3-2'!I18,'3-3-3'!I18) -> 27,991 | J18: =SUM('3-3-2'!J18,'3-3-3'!J18) -> 0 | K18: =SUM('3-3-2'!K18,'3-3-3'!K18) -> 0 | L18: =SUM('3-3-2'!L18,'3-3-3'!L18) -> 0 | M18: =SUM('3-3-2'!M18,'3-3-3'!M18) -> 0 | N18: =SUM('3-3-2'!N18,'3-3-3'!N18) -> 1 | O18: =SUM('3-3-2'!O18,'3-3-3'!O18) -> 6,069
A19: 자동차세 | B19: 4,041 | C19: 157,726 | D19: =SUM('3-3-2'!D19,'3-3-3'!D19) -> 16 | E19: =SUM('3-3-2'!E19,'3-3-3'!E19) -> 1,738 | F19: =SUM('3-3-2'!F19,'3-3-3'!F19) -> 348 | G19: =SUM('3-3-2'!G19,'3-3-3'!G19) -> 32,992 | H19: =SUM('3-3-2'!H19,'3-3-3'!H19) -> 0 | I19: =SUM('3-3-2'!I19,'3-3-3'!I19) -> 0 | J19: =SUM('3-3-2'!J19,'3-3-3'!J19) -> 0 | K19: =SUM('3-3-2'!K19,'3-3-3'!K19) -> 0 | L19: =SUM('3-3-2'!L19,'3-3-3'!L19) -> 0 | M19: =SUM('3-3-2'!M19,'3-3-3'!M19) -> 0 | N19: =SUM('3-3-2'!N19,'3-3-3'!N19) -> 3,677 | O19: =SUM('3-3-2'!O19,'3-3-3'!O19) -> 122,996
A20: 담배소비세 | B20: 2 | C20: 5 | D20: =SUM('3-3-2'!D20,'3-3-3'!D20) -> 0 | E20: =SUM('3-3-2'!E20,'3-3-3'!E20) -> 0 | F20: =SUM('3-3-2'!F20,'3-3-3'!F20) -> 2 | G20: =SUM('3-3-2'!G20,'3-3-3'!G20) -> 5 | H20: =SUM('3-3-2'!H20,'3-3-3'!H20) -> 0 | I20: =SUM('3-3-2'!I20,'3-3-3'!I20) -> 0 | J20: =SUM('3-3-2'!J20,'3-3-3'!J20) -> 0 | K20: =SUM('3-3-2'!K20,'3-3-3'!K20) -> 0 | L20: =SUM('3-3-2'!L20,'3-3-3'!L20) -> 0 | M20: =SUM('3-3-2'!M20,'3-3-3'!M20) -> 0 | N20: =SUM('3-3-2'!N20,'3-3-3'!N20) -> 0 | O20: =SUM('3-3-2'!O20,'3-3-3'!O20) -> 0
A21: 지방소득세 | B21: 5,417 | C21: 3,118,330 | D21: =SUM('3-3-2'!D21,'3-3-3'!D21) -> 40 | E21: =SUM('3-3-2'!E21,'3-3-3'!E21) -> 25,464 | F21: =SUM('3-3-2'!F21,'3-3-3'!F21) -> 186 | G21: =SUM('3-3-2'!G21,'3-3-3'!G21) -> 107,725 | H21: =SUM('3-3-2'!H21,'3-3-3'!H21) -> 9 | I21: =SUM('3-3-2'!I21,'3-3-3'!I21) -> 1,719 | J21: =SUM('3-3-2'!J21,'3-3-3'!J21) -> 0 | K21: =SUM('3-3-2'!K21,'3-3-3'!K21) -> 0 | L21: =SUM('3-3-2'!L21,'3-3-3'!L21) -> 1 | M21: =SUM('3-3-2'!M21,'3-3-3'!M21) -> 17 | N21: =SUM('3-3-2'!N21,'3-3-3'!N21) -> 5,181 | O21: =SUM('3-3-2'!O21,'3-3-3'!O21) -> 2,983,405
A22: 주행세 | B22: 0 | C22: 0 | D22: =SUM('3-3-2'!D22,'3-3-3'!D22) -> 0 | E22: =SUM('3-3-2'!E22,'3-3-3'!E22) -> 0 | F22: =SUM('3-3-2'!F22,'3-3-3'!F22) -> 0 | G22: =SUM('3-3-2'!G22,'3-3-3'!G22) -> 0 | H22: =SUM('3-3-2'!H22,'3-3-3'!H22) -> 0 | I22: =SUM('3-3-2'!I22,'3-3-3'!I22) -> 0 | J22: =SUM('3-3-2'!J22,'3-3-3'!J22) -> 0 | K22: =SUM('3-3-2'!K22,'3-3-3'!K22) -> 0 | L22: =SUM('3-3-2'!L22,'3-3-3'!L22) -> 0 | M22: =SUM('3-3-2'!M22,'3-3-3'!M22) -> 0 | N22: =SUM('3-3-2'!N22,'3-3-3'!N22) -> 0 | O22: =SUM('3-3-2'!O22,'3-3-3'!O22) -> 0
A23: 농업소득세 | B23: 0 | C23: 0 | D23: =SUM('3-3-2'!D23,'3-3-3'!D23) -> 0 | E23: =SUM('3-3-2'!E23,'3-3-3'!E23) -> 0 | F23: =SUM('3-3-2'!F23,'3-3-3'!F23) -> 0 | G23: =SUM('3-3-2'!G23,'3-3-3'!G23) -> 0 | H23: =SUM('3-3-2'!H23,'3-3-3'!H23) -> 0 | I23: =SUM('3-3-2'!I23,'3-3-3'!I23) -> 0 | J23: =SUM('3-3-2'!J23,'3-3-3'!J23) -> 0 | K23: =SUM('3-3-2'!K23,'3-3-3'!K23) -> 0 | L23: =SUM('3-3-2'!L23,'3-3-3'!L23) -> 0 | M23: =SUM('3-3-2'!M23,'3-3-3'!M23) -> 0 | N23: =SUM('3-3-2'!N23,'3-3-3'!N23) -> 0 | O23: =SUM('3-3-2'!O23,'3-3-3'!O23) -> 0
A24: 도축세 | B24: 0 | C24: 0 | D24: =SUM('3-3-2'!D24,'3-3-3'!D24) -> 0 | E24: =SUM('3-3-2'!E24,'3-3-3'!E24) -> 0 | F24: =SUM('3-3-2'!F24,'3-3-3'!F24) -> 0 | G24: =SUM('3-3-2'!G24,'3-3-3'!G24) -> 0 | H24: =SUM('3-3-2'!H24,'3-3-3'!H24) -> 0 | I24: =SUM('3-3-2'!I24,'3-3-3'!I24) -> 0 | J24: =SUM('3-3-2'!J24,'3-3-3'!J24) -> 0 | K24: =SUM('3-3-2'!K24,'3-3-3'!K24) -> 0 | L24: =SUM('3-3-2'!L24,'3-3-3'!L24) -> 0 | M24: =SUM('3-3-2'!M24,'3-3-3'!M24) -> 0 | N24: =SUM('3-3-2'!N24,'3-3-3'!N24) -> 0 | O24: =SUM('3-3-2'!O24,'3-3-3'!O24) -> 0
A25: 종합토지세 | B25: 0 | C25: 0 | D25: =SUM('3-3-2'!D25,'3-3-3'!D25) -> 0 | E25: =SUM('3-3-2'!E25,'3-3-3'!E25) -> 0 | F25: =SUM('3-3-2'!F25,'3-3-3'!F25) -> 0 | G25: =SUM('3-3-2'!G25,'3-3-3'!G25) -> 0 | H25: =SUM('3-3-2'!H25,'3-3-3'!H25) -> 0 | I25: =SUM('3-3-2'!I25,'3-3-3'!I25) -> 0 | J25: =SUM('3-3-2'!J25,'3-3-3'!J25) -> 0 | K25: =SUM('3-3-2'!K25,'3-3-3'!K25) -> 0 | L25: =SUM('3-3-2'!L25,'3-3-3'!L25) -> 0 | M25: =SUM('3-3-2'!M25,'3-3-3'!M25) -> 0 | N25: =SUM('3-3-2'!N25,'3-3-3'!N25) -> 0 | O25: =SUM('3-3-2'!O25,'3-3-3'!O25) -> 0
A26: 도시계획세 | B26: 4 | C26: 57 | D26: =SUM('3-3-2'!D26,'3-3-3'!D26) -> 0 | E26: =SUM('3-3-2'!E26,'3-3-3'!E26) -> 0 | F26: =SUM('3-3-2'!F26,'3-3-3'!F26) -> 2 | G26: =SUM('3-3-2'!G26,'3-3-3'!G26) -> 6 | H26: =SUM('3-3-2'!H26,'3-3-3'!H26) -> 2 | I26: =SUM('3-3-2'!I26,'3-3-3'!I26) -> 51 | J26: =SUM('3-3-2'!J26,'3-3-3'!J26) -> 0 | K26: =SUM('3-3-2'!K26,'3-3-3'!K26) -> 0 | L26: =SUM('3-3-2'!L26,'3-3-3'!L26) -> 0 | M26: =SUM('3-3-2'!M26,'3-3-3'!M26) -> 0 | N26: =SUM('3-3-2'!N26,'3-3-3'!N26) -> 0 | O26: =SUM('3-3-2'!O26,'3-3-3'!O26) -> 0
A27: 사업소세 | B27: 0 | C27: 0 | D27: =SUM('3-3-2'!D27,'3-3-3'!D27) -> 0 | E27: =SUM('3-3-2'!E27,'3-3-3'!E27) -> 0 | F27: =SUM('3-3-2'!F27,'3-3-3'!F27) -> 0 | G27: =SUM('3-3-2'!G27,'3-3-3'!G27) -> 0 | H27: =SUM('3-3-2'!H27,'3-3-3'!H27) -> 0 | I27: =SUM('3-3-2'!I27,'3-3-3'!I27) -> 0 | J27: =SUM('3-3-2'!J27,'3-3-3'!J27) -> 0 | K27: =SUM('3-3-2'!K27,'3-3-3'!K27) -> 0 | L27: =SUM('3-3-2'!L27,'3-3-3'!L27) -> 0 | M27: =SUM('3-3-2'!M27,'3-3-3'!M27) -> 0 | N27: =SUM('3-3-2'!N27,'3-3-3'!N27) -> 0 | O27: =SUM('3-3-2'!O27,'3-3-3'!O27) -> 0

Sheet 3-3-2
A1: 3-3-2. 과오납 환부액 사유별 현황
A2: (현년도) | O2: (단위 : 건, 천원)
A3: 구 분 | B3: 계 | D3: 이중납부 | F3: 과세면제 | H3: 계약해제 | J3: 행정소송 패소 | L3: 착오부과 | N3: 기 타(국세조정 등)
B4: 건수 | C4: 금액 | D4: 건수 | E4: 금액 | F4: 건수 | G4: 금액 | H4: 건수 | I4: 금액 | J4: 건수 | K4: 금액 | L4: 건수 | M4: 금액 | N4: 건수 | O4: 금액
A5: 합 계 | B5: =+B6+B16 -> 16,197 | C5: 1,245,629 | D5: 182 | E5: 43,767 | F5: =+F6+F16 -> 5,218 | G5: =+G6+G16 -> 452,235 | H5: 340 | I5: 122,187 | J5: 0 | K5: 0 | L5: 12 | M5: 3,088 | N5: 10,445 | O5: 624,352
A6: 도세 계 | B6: =SUM(B7:B15) -> 7,858 | C6: 459,209 | D6: 111 | E6: 23,399 | F6: =SUM(F7:F15) -> 4,762 | G6: =SUM(G7:G15) -> 284,456 | H6: 294 | I6: 93,302 | J6: 0 | K6: 0 | L6: 12 | M6: 3,088 | N6: 2,679 | O6: 54,964
A7: 취 득 세 | B7: =SUM(D7,F7,H7,J7,L7,N7) -> 177 | C7: 258,293 | D7: 14 | E7: 18,301 | F7: 118 | G7: 164,220 | H7: 37 | I7: 69,860 | L7: 6 | M7: 2,853 | N7: 2 | O7: 3,059
A8: 등록면허세 | B8: 4,333 | C8: 94,633 | D8: 31 | E8: 2,423 | F8: 4,213 | G8: 82,422 | H8: 86 | I8: 9,755 | L8: 2 | M8: 15 | N8: 1 | O8: 18
A9: 지역자원시설세 | B9: 988 | C9: 25,024 | D9: 1 | E9: 14 | F9: 8 | G9: 40 | H9: 8 | I9: 179 | N9: 971 | O9: 24,791
A10: 지방소비세 | B10: 0 | C10: 0
A11: 등록세 | B11: 9 | C11: 437 | F11: 1 | G11: 67 | H11: 8 | I11: 370
A12: 면허세 | B12: 0 | C12: 0
A13: 공동시설세 | B13: 0 | C13: 0
A14: 지역개발세 | B14: 0 | C14: 0
A15: 지방교육세 | B15: 2,351 | C15: 80,822 | D15: 65 | E15: 2,661 | F15: 422 | G15: 37,707 | H15: 155 | I15: 13,138 | L15: 4 | M15: 220 | N15: 1,705 | O15: 27,096
A16: 시군세 계 | B16: =SUM(B17:B27) -> 8,339 | C16: 786,420 | D16: 71 | E16: 20,368 | F16: =SUM(F17:F27) -> 456 | G16: =SUM(G17:G27) -> 167,779 | H16: 46 | I16: 28,885 | J16: 0 | K16: 0 | L16: 0 | M16: 0 | N16: 7,766 | O16: 569,388
A17: 주 민 세 | B17: =SUM(D17,F17,H17,J17,L17,N17) -> 25 | C17: =SUM(E17,G17,I17,K17,M17,O17) -> 2,027 | D17: 9 | E17: 99 | F17: 8 | G17: 1,412 | H17: 8 | I17: 516
A18: 재 산 세 | B18: =SUM(D18,F18,H18,J18,L18,N18) -> 56 | C18: 115,406 | D18: 10 | E18: 167 | F18: 14 | G18: 82,303 | H18: 31 | I18: 26,867 | N18: 1 | O18: 6,069
A19: 자동차세 | B19: 3,693 | C19: 143,039 | D19: 15 | E19: 1,675 | F19: 326 | G19: 31,232 | N19: 3,352 | O19: 110,132
A20: 담배소비세 | B20: 0 | C20: 0
A21: 지방소득세 | B21: 4,565 | C21: 525,948 | D21: 37 | E21: 18,427 | F21: 108 | G21: 52,832 | H21: 7 | I21: 1,502 | N21: 4,413 | O21: 453,187
A22: 주행세 | B22: 0 | C22: 0
A23: 농업소득세 | B23: 0 | C23: 0
A24: 도축세 | B24: 0 | C24: 0
A25: 종합토지세 | B25: 0 | C25: 0
A26: 도시계획세 | B26: 0 | C26: 0
A27: 사업소세 | B27: 0 | C27: 0

Sheet 3-3-3
A1: 3-3-3. 과오납 환부액 사유별 현황
A2: (과년도) | O2: (단위 : 건, 천원)
A3: 구 분 | B3: 계 | D3: 이중납부 | F3: 과세면제 | H3: 계약해제 | J3: 행정소송 패소 | L3: 착오부과 | N3: 기 타(국세조정 등)
B4: 건수 | C4: 금액 | D4: 건수 | E4: 금액 | F4: 건수 | G4: 금액 | H4: 건수 | I4: 금액 | J4: 건수 | K4: 금액 | L4: 건수 | M4: 금액 | N4: 건수 | O4: 금액
A5: 합 계 | B5: =+B6+B16 -> 1,872 | C5: =C6+C16 -> 2,842,252 | D5: 15 | E5: 7,162 | F5: =+F6+F16 -> 218 | G5: =+G6+G16 -> 101,653 | H5: 124 | I5: 10,423 | J5: 72 | K5: 70,006 | L5: 1 | M5: 17 | N5: 1,442 | O5: 2,652,991
A6: 도세 계 | B6: =SUM(B7:B15) -> 563 | C6: 121,540 | D6: 7 | E6: 32 | F6: =SUM(F7:F15) -> 89 | G6: =SUM(G7:G15) -> 39,281 | H6: 69 | I6: 8,421 | J6: 72 | K6: 70,006 | L6: 0 | M6: 0 | N6: 326 | O6: 3,800
A7: 취 득 세 | B7: =SUM(D7,F7,H7,J7,L7,N7) -> 69 | C7: 107,207 | F7: 25 | G7: 35,859 | H7: 8 | I7: 7,706 | J7: 36 | K7: 63,642
A8: 등록면허세 | B8: 7 | C8: 469 | D8: 1 | E8: 6 | F8: 1 | G8: 79 | H8: 5 | I8: 384
A9: 지역자원시설세 | B9: 0 | C9: 0
A10: 지방소비세 | B10: 0 | C10: 0
A11: 등록세 | B11: 3 | C11: 762 | F11: 3 | G11: 762
A12: 면허세 | B12: 0 | C12: 0
A13: 공동시설세 | B13: 0 | C13: 0
A14: 지역개발세 | B14: 0 | C14: 0
A15: 지방교육세 | B15: 484 | C15: 13,102 | D15: 6 | E15: 26 | F15: 60 | G15: 2,581 | H15: 56 | I15: 331 | J15: 36 | K15: 6,364 | N15: 326 | O15: 3,800
A16: 시군세 계 | B16: =SUM(B17:B27) -> 1,309 | C16: =SUM(C17:C27) -> 2,720,712 | D16: 8 | E16: 7,130 | F16: =SUM(F17:F27) -> 129 | G16: =SUM(G17:G27) -> 62,372 | H16: 55 | I16: 2,002 | J16: 0 | K16: 0 | L16: 1 | M16: 17 | N16: 1,116 | O16: 2,649,191
A17: 주 민 세 | B17: =SUM(D17,F17,H17,J17,L17,N17) -> 34 | C17: =SUM(E17,G17,I17,K17,M17,O17) -> 110,137 | F17: 4 | G17: 3,418 | H17: 7 | I17: 610 | N17: 23 | O17: 106,109
A18: 재 산 세 | B18: =SUM(D18,F18,H18,J18,L18,N18) -> 69 | C18: 3,444 | D18: 4 | E18: 30 | F18: 21 | G18: 2,290 | H18: 44 | I18: 1,124
A19: 자동차세 | B19: 348 | C19: 14,687 | D19: 1 | E19: 63 | F19: 22 | G19: 1,760 | N19: 325 | O19: 12,864
A20: 담배소비세 | B20: 2 | C20: 5 | F20: 2 | G20: 5
A21: 지방소득세 | B21: 852 | C21: 2,592,382 | D21: 3 | E21: 7,037 | F21: 78 | G21: 54,893 | H21: 2 | I21: 217 | L21: 1 | M21: 17 | N21: 768 | O21: 2,530,218
A22: 주행세 | B22: 0 | C22: 0
A23: 농업소득세 | B23: 0 | C23: 0
A24: 도축세 | B24: 0 | C24: 0
A25: 종합토지세 | B25: 0 | C25: 0
A26: 도시계획세 | B26: 4 | C26: 57 | F26: 2 | G26: 6 | H26: 2 | I26: 51
A27: 사업소세 | B27: 0 | C27: 0
